Workbook

Sheet READ ME
D11: =Translate!C24 -> Select language | G11: English
D13: =Translate!$C$25 -> Read Me Sheet
D18: =Translate!$C$26 -> INVEST – Farm Analysis Tool
D20: =Translate!$C$27 -> Introduction
D21: =Translate!$C$28 -> This tool allows for the assessment of on-farm productivity and profitability through its average annual agricultural production. The tool is useful for establishing a baseline or assessing the impact of planned investments. This tool allows an SPIS advisor (supplier, development practitioner, extension officer) to support a farm enterprise towards identify unnecessary costs, determine best value agricultural activities and correctly monetize different farm inputs.
D28: =Translate!$C$29 -> Tips & Tricks
D29: =Translate!$C$30 -> ● Make sure that macro is always enabled for the proper functioning of this tool
D30: =Translate!$C$31 -> ● Only enter values into white cells
D31: =Translate!$C$32 -> ● This tool comprises drop down lists and macros to simplify data entry and results review.
D32: =Translate!$C$33 -> ● For the multilanguage option to work properly, do NOT delete sheets
D33: =Translate!$C$34 -> ● This tool provides an indicative assessment of farm profitability and should be complemented by deeper and more detailed assessments, market analysis, and other due diligence, before committing to large-scale investments.
D34: =Translate!$C$35 -> ● This tool contains numerous critical formulas or calculations
D35: =Translate!$C$36 -> ● Make sure that this file is always saved as ".xlsm"
D37: =Translate!$C$37 -> Overview
D38: =Translate!$C$38 -> This tool comprises the following sheet:
D39: =Translate!$C$8 -> 1 General Information | G39: =Translate!$C$39 -> farm name, location, and area
D41: =Translate!$C$9 -> 2 Equipment & Assets | G41: =Translate!$C$40 -> currently available on the farm or considered for future purchases
D43: =Translate!$C$10 -> 3 Income Crops & Livestock | G43: =Translate!$C$41 -> to add current or projected sales of seasonal crops (e.g. rice, maize), perennial crops (e.g. fruits), and livestock and respective by-products
D46: =Translate!$C$11 -> 4 Other Income | G46: =Translate!$C$42 -> additional income not directly related to crop or livestock production such as the sale of water or rental of equipment
D49: =Translate!$C$12 -> 5 Financing | G49: =Translate!$C$43 -> calculates annual loan repayment based on credit information
D51: =Translate!$C$13 -> 6 Fixed and Variable Costs | G51: =Translate!$C$44 -> to add all fixed and variable costs/expenditures of the farm enterprise
D53: =Translate!$C$14 -> 7 Farm Income Statement | G53: =Translate!$C$45 -> No Entry! Summary calculation on gross profitability of the farm enterprise
D55: =Translate!$C$15 -> Crop Price Calculation Sheet | G55: =Translate!$C$46 -> side sheet for calculating average annual crop and livestock prices
D57: =Translate!$C$16 -> Quick Check | G57: =Translate!$C$47 -> side sheet for a quick calculation of farm profitability useful before conducting a full analysis
D61: =Translate!$C$48 -> About
D62: =Translate!$C$49 -> Published by: | F62: =Translate!$C$55 -> GIZ & FAO
D63: =Translate!$C$50 -> Responsible: | F63: =Translate!$C$56 -> GIZ project "Water and Energy for Food (WE4F)"
D65: =Translate!$C$51 -> Contact: | F65: we4f@giz.de
D66: =Translate!$C$52 -> Download link: | F66: https://energypedia.info/wiki/Toolbox_on_SPIS
D67: =Translate!$C$53 -> About: | F67: =Translate!$C$57 -> Water and Energy for Food Grand Challenge at:
F69: https://we4f.org/
D70: =Translate!$C$54 -> Version: | F70: =Translate!$C$58 -> 3.0 (June 2021)
D72: =Translate!$C$59 -> The Toolbox on Solar Powered Irrigation Systems (SPIS) is a legacy project of the global initiative Powering Agriculture: An Energy Grand Challenge for Development (PAEGC). In 2012, the United States Agency for International Development (USAID), the Swedish International Development Cooperation Agency (Sida), the German Federal Ministry for Economic Cooperation and Development (BMZ), Duke Energy, and the Overseas Private Investment Corporation (OPIC) combined resources to support new and sustainable approaches to accelerate the development and deployment of clean energy solutions for increasing agriculture productivity. The Toolbox on SPIS has now been embraced for further development by PAEGC's successor program Water and Energy for Food (WE4F). WE4F is a joint international initiative of the European Union (EU), German Federal Ministry for Economic Cooperation and Development (BMZ), the Ministry of Foreign Affairs of the Kingdom of the Netherlands, Sweden through the Swedish International Development Cooperation Agency (Sida), and the U.S. Agency for International Development (USAID). WE4F aims to increase food production along the value chain through a more sustainable and efficient usage of water and/or energy.
D92: =Translate!$C$60 -> The designations employed and the presentation of material in this information product do not imply the expression of any opinion whatsoever on the part of Deutsche Gesellschaft für Internationale Zusammenarbeit (GIZ) GmbH, Food and Agriculture Organization of the United Nations (FAO) or any of the PAEGC Founding Partners concerning the legal or development status of any country, territory, city or area or of its authorities, or concerning the delimitation of its frontiers or boundaries. The mention of specific companies or products of manufacturers, whether or not these have been patented, does not imply that these have been endorsed or recommended by GIZ, FAO, or any of the PAEGC Founding Partners in preference to others of a similar nature that are not mentioned. The views expressed in this information product are those of the author and do not necessarily reflect the views or policies of GIZ, FAO, or any of the PAEGC Founding Partners.
D107: =Translate!$C$61 -> GIZ, FAO and the PAEGC Founding Partners encourage the use, reproduction and dissemination of material in this information product. Except where otherwise indicated, material may be copied, downloaded and printed for private study, research and teaching purposes, or for use in non-commercial products or services, provided that appropriate acknowledgement of GIZ and FAO as the source and copyright holder is given.
D115: =Translate!$C$62 -> © GIZ and FAO, 2021

Sheet 1 General Information
B1: =Translate!$C$64 -> INVEST – Farm Analysis Tool
B2: =Translate!$C$65 -> 1 GENERAL FARM INFORMATION
B5: =Translate!$C$66 -> Country | G5: =Translate!$C$68 -> Region
B6: =Translate!$C$67 -> Farm code or name | G6: =Translate!$C$69 -> Date
B8: =Translate!$C$70 -> Village
B9: =Translate!$C$71 -> Division
B10: =Translate!$C$72 -> District
B11: =Translate!$C$73 -> Assessor
B12: =Translate!$C$74 -> Agricultural planning period (years) | D12: 2021 | E12: 2022 | F12: =Translate!$C$77 -> (year in four digits each!)
B13: =Translate!$C$75 -> Currency used for calculation | D13: €
B14: =Translate!$C$76 -> Area measurement unit | D14: ha
B17: =Translate!$C$84 -> LAND RESOURCES
B19: =Translate!$C$85 -> Property rights | E19: =Translate!$C$93 -> Area
B20: =Translate!$C$86 -> + Land owned | E20: 1 | F20: =+$D$14 -> ha
B21: =Translate!$C$87 -> + Additional land as part of cooperative land | F21: =+$D$14 -> ha
B22: =Translate!$C$88 -> + Additional land exploited as a shared grower | F22: ha
B23: =Translate!$C$89 -> + Additional land leased in | F23: ha
B24: =Translate!$C$90 -> - Own land leased out | F24: ha
B25: =Translate!$C$91 -> + Additional land in possession of other sources | F25: ha
B26: =Translate!$C$92 -> - Own land unused or unusable | F26: ha
D27: =Translate!$C$94 -> Total | E27: =+SUM(E20:E23)-E24+E25-E26 -> 1 | F27: ha
B30: =Translate!$C$95 -> Land classification | D30: =Translate!$C$93 -> Area | E30: =Translate!$C$101 -> rainfed | F30: =Translate!$C$102 -> irrigated
B31: =Translate!$C$96 -> Seasonal crop land | F31: 1 | G31: =+$D$14 -> ha
B32: =Translate!$C$97 -> Perennials (with & without option of intercropping) | G32: ha
B33: =Translate!$C$98 -> Greenhouses | G33: ha
B34: =Translate!$C$99 -> Pastures (grazing land) | G34: ha | H34: =Translate!$C$104 -> Total area
B35: =Translate!$C$100 -> Fallow land | G35: ha
B36: =Translate!$C$103 -> Total agricultural / horticultural land | E36: =+SUM(E31:E35) -> 0 | F36: =+SUM(F31:F35) -> 1 | G36: ha | H36: =IF(E36+F36=E27,E36+F36,Translate!$C$105) -> 1 | I36: ha

Sheet 2 Equipment & Assets
B1: =Translate!$C$107 -> INVEST – Farm Analysis Tool
B2: =Translate!$C$108 -> 2 EQUIPMENT & ASSETS
D4: =Translate!$C$109 -> Farm code/name | F4: ='1 General Information'!C6 -> 0
B6: =Translate!$C$110 -> Type | C6: =Translate!$C$111 -> Cost of existing equipment (when originally purchased) | D6: =Translate!$C$112 -> Salvage value (when selling existing equipment) | E6: =Translate!$C$113 -> Age | F6: =Translate!$C$114 -> Normal life span | G6: =Translate!$C$115 -> Annual depreciation for replacement
C10: ='1 General Information'!D13 -> € | D10: ='1 General Information'!D13 -> € | E10: =Translate!$C$116 -> years | F10: =Translate!$C$116 -> years | G10: ='1 General Information'!D13 -> €
B11: Please select | C11: 60000 | D11: 10000 | E11: 2 | F11: 20 | G11: =IFERROR(SLN(C11,D11,(F11-E11)),"") -> 2777.777778 | H11: =Translate!$C$117 -> Indicative normal life span: | I11: =Translate!$C$139 -> Please select
B12: Please select | G12: =IFERROR(SLN(C12,D12,(F12-E12)),"") ->  | H12: =Translate!$C$118 -> (highly quality dependent!)
B13: Please select | H13: =Translate!$C$119 -> Livestock shed - 20 years | I13: =Translate!$C$140 -> Livestock shed
B14: Please select | H14: =Translate!$C$120 -> Garage / workshop - 20 year | I14: =Translate!$C$141 -> Garage / workshop
B15: Please select | H15: =Translate!$C$121 -> Storage / warehouse - 20 years | I15: =Translate!$C$142 -> Storage / warehouse
B16: Please select | H16: =Translate!$C$122 -> Greenhouse - 10 years | I16: =Translate!$C$143 -> Greenhouse
B17: Please select | G17: =IFERROR(SLN(C17,D17,(F17-E17)),"") ->  | H17: =Translate!$C$123 -> Other building - 20 years | I17: =Translate!$C$144 -> Other building
B18: Please select | H18: =Translate!$C$124 -> Ox cart - 7 years | I18: =Translate!$C$145 -> Ox cart
B19: Please select | H19: =Translate!$C$125 -> Truck / car - 10 years | I19: =Translate!$C$146 -> Truck / car
B20: Please select | H20: =Translate!$C$126 -> Tractor - 10 years | I20: =Translate!$C$147 -> Tractor
B21: Please select | H21: =Translate!$C$127 -> Plough - 7 years | I21: =Translate!$C$148 -> Plough
B22: Please select | H22: =Translate!$C$128 -> Cultivator / tiller - 7 years | I22: =Translate!$C$149 -> Cultivator / tiller
B23: Please select | H23: =Translate!$C$129 -> Sowing machine - 7 years | I23: =Translate!$C$150 -> Sowing machine
B24: Please select | H24: =Translate!$C$130 -> Fertilizer distributor - 7 years | I24: =Translate!$C$151 -> Fertilizer distributor
B25: Please select | H25: =Translate!$C$131 -> Sprayer - 7 years | I25: =Translate!$C$152 -> Sprayer
B26: Please select | H26: =Translate!$C$132 -> Grass cutter - 7 years | I26: =Translate!$C$153 -> Grass cutter
B27: Please select | H27: =Translate!$C$133 -> Baler - 7 years | I27: =Translate!$C$154 -> Baler
B28: Please select | H28: =Translate!$C$134 -> Cereal harvester - 10 years | I28: =Translate!$C$155 -> Cereal harvester
H29: =Translate!$C$135 -> Irrigation material - 5 years | I29: =Translate!$C$156 -> Irrigation material
H30: =Translate!$C$136 -> Water pump - 7 years | I30: =Translate!$C$157 -> Water pump
H31: =Translate!$C$137 -> PV modules - 20 years | I31: =Translate!$C$158 -> PV generator
H32: =Translate!$C$138 -> Well / borehole - 20 years | I32: =Translate!$C$159 -> Well / borehole
C38: =Translate!$C$160 -> Total Annual Depreciation | F38: ='1 General Information'!D13 -> € | G38: =+SUM(G11:G36) -> 2777.777778

Sheet 3 Income Crops & Livestock
B1: =Translate!$C$162 -> INVEST – Farm Analysis Tool
B2: =Translate!$C$163 -> INCOME: SEASONAL CROP
D4: =Translate!$C$164 -> Farm code/name | G4: ='1 General Information'!C6 -> 0
C5: =Translate!$C$166 -> Season 1 | D5: =Translate!$C$167 -> Season 2
B6: =Translate!$C$165 -> Agricultural land used: | C6: ='List of dropdown'!E24 -> 0 | D6: ='List of dropdown'!E25 -> 0 | E6: ='1 General Information'!D14 -> ha
E7: =Translate!$C$168 -> Unit | F7: =Translate!$C$169&" "& '1 General Information'!D14 &" "&Translate!$C$170 -> Yield per ha or Quantity | G7: =Translate!$C$171 -> Unit Price | H7: =Translate!$C$172 -> Value
B8: =Translate!$C$173 -> Sales
B9: =Translate!$C$174 -> Crop types: | C9: =Translate!$C$175 -> Season: | D9: =Translate!$C$176 -> Area:
B10: Tomato | D10: 0.5 | H10: =+G10*F10*D10 -> 0
B11: Maize | D11: 0.5 | H11: =+G11*F11*D11 -> 0
B12: Tomato | D12: 0.5 | H12: 0
B13: Beans | D13: 0.5 | H13: 0
H14: 0
H15: =+G15*F15*D15 -> 0
B16: =Translate!$C$177 -> By-products:
H17: =+G17*F17 -> 0
H18: 0
H19: 0
B20: =Translate!$C$178 -> GROSS INCOME | H20: =SUM(H10:H19) -> 0
B21: =Translate!$C$179 -> INCOME: PERENNIAL CROP
B23: =Translate!$C$165 -> Agricultural land used: | D23: =SUM(D27:D31) -> 0 | E23: ='1 General Information'!D14 -> ha
E24: =Translate!$C$168 -> Unit | F24: =Translate!$C$169&" "& '1 General Information'!D14 &" "&Translate!$C$170 -> Yield per ha or Quantity | G24: =Translate!$C$171 -> Unit Price | H24: =Translate!$C$172 -> Value
B25: =Translate!$C$173 -> Sales
B26: =Translate!$C$174 -> Crop types: | D26: =Translate!$C$176 -> Area:
H27: =+G27*F27*D27 -> 0
H28: =+G28*F28*D28 -> 0
H29: 0
H30: 0
H31: 0
B32: =Translate!$C$177 -> By-products:
H33: =+G33*F33 -> 0
H34: =+G34*F34 -> 0
H35: 0
B36: =Translate!$C$178 -> GROSS INCOME | H36: =SUM(H27:H35) -> 0
B37: =Translate!$C$180 -> INCOME: LIVESTOCK
B40: =Translate!$C$181 -> Livestock for production: | D40: =SUM(D44:D57) -> 3 | E40: =Translate!$C$182 -> Livestock sold: | G40: =SUM(F44:F57) -> 2 | H40: =Translate!$C$183 -> head
E41: =Translate!$C$168 -> Unit | F41: =Translate!$C$184 -> Quantity | G41: =Translate!$C$171 -> Unit Price | H41: =Translate!$C$172 -> Value
B42: =Translate!$C$185 -> For Production | E42: =Translate!$C$186 -> For Sale
B43: =Translate!$C$187 -> Livestock type | D43: =Translate!$C$184 -> Quantity
B44: =Translate!$C$188 -> Dairy cows | D44: 3 | E44: =Translate!$C$183 -> head | H44: =+G44*F44 -> 0
B45: =Translate!$C$189 -> Heifers | E45: =Translate!$C$183 -> head | H45: =+G45*F45 -> 0
B46: =Translate!$C$190 -> Adult steers | E46: =Translate!$C$183 -> head | H46: 0
B47: =Translate!$C$191 -> Juvenile steers | E47: =Translate!$C$183 -> head | F47: 2 | H47: 0
B48: =Translate!$C$192 -> Calfs | E48: =Translate!$C$183 -> head | H48: 0
B49: =Translate!$C$193 -> Sheep does | E49: =Translate!$C$183 -> head | H49: 0
B50: =Translate!$C$194 -> Sheep bucks | E50: =Translate!$C$183 -> head | H50: 0
B51: =Translate!$C$195 -> Sheep kids | E51: =Translate!$C$183 -> head | H51: 0
B52: =Translate!$C$196 -> Goat does | E52: =Translate!$C$183 -> head | H52: 0
B53: =Translate!$C$197 -> Goat bucks | E53: =Translate!$C$183 -> head | H53: 0
B54: =Translate!$C$198 -> Goat kids | E54: =Translate!$C$183 -> head | H54: 0
B55: =Translate!$C$199 -> Chickens | E55: =Translate!$C$183 -> head | H55: 0
H56: 0 | L56: =Translate!$C$206 -> By-product calculator for | O56: Milk | P56: =Translate!$C$207 -> Select
H57: 0
B58: =Translate!$C$177 -> By-products: | L58: =IF($O$56=$B$59,Translate!$C$208,"") -> Daily milk yield: | O58: 10 | P58: =IF($O$56=$B$59,Translate!$C$209,"") -> litres/day
B59: =Translate!$C$200 -> Milk | E59: =Translate!$C$204 -> litres | F59: 15000 | G59: 4 | H59: =+G59*F59 -> 60000 | L59: =IF($O$56=$B$59,Translate!$C$211,Translate!$C$210) -> Number of dairy livestock: | O59: 2 | P59: =Translate!$C$183 -> head
B60: =Translate!$C$201 -> Eggs | E60: =Translate!$C$205 -> piece | H60: =+G60*F60 -> 0 | L60: =IF($O$56=$B$59,Translate!$C$212,Translate!$C$213) -> Days of milking per year: | O60: 300 | P60: =Translate!C215 -> days/year
B61: =Translate!$C$202 -> Skins | H61: =+G61*F61 -> 0 | L61: =IF($O$56=$B$59,Translate!C214,"") -> Note: milking (lactation) periods typically range between 209 and 305 days per year for dairy livestock
B62: =Translate!$C$203 -> Manure | H62: =+G62*F62 -> 0
H63: 0 | L63: =Translate!$C$216 -> Total | O63: =IF($O$56="Milk",$O$58*$O$59*$O$60,$O$59*$O$60) -> 6000 | P63: =IF($O$56=$B$59,Translate!$C$217,Translate!$C$218) -> litres/year
B64: =Translate!$C$178 -> GROSS INCOME | H64: =SUM(H44:H63) -> 60000

Sheet 4 Other Income
A1: =Translate!$C$220 -> INVEST – Farm Analysis Tool
B2: =Translate!$C$221 -> 4 OTHER INCOME
J4: =Translate!$C$222 -> Farm code/name | N4: ='1 General Information'!C6 -> 0
B6: =Translate!$C$223 -> Month | C6: =Translate!$C$224 -> Monthly/Yearly Costs | D6: =Translate!$C$225 -> January | E6: =Translate!$C$226 -> February | F6: =Translate!$C$227 -> March | G6: =Translate!$C$228 -> April | H6: =Translate!$C$229 -> May | I6: =Translate!$C$230 -> June | J6: =Translate!$C$231 -> July | K6: =Translate!$C$232 -> August | L6: =Translate!$C$233 -> September | M6: =Translate!$C$234 -> October | N6: =Translate!$C$235 -> November | O6: =Translate!$C$236 -> December | P6: =Translate!$C$237 -> Yearly Costs | Q6: =Translate!$C$238 -> Total
B7: =Translate!$C$239 -> Type of OTHER INCOME | D7: 1 | E7: 2 | F7: 3 | G7: 4 | H7: 5 | I7: 6 | J7: 7 | K7: 8 | L7: 9 | M7: 10 | N7: 11 | O7: 12
B8: =Translate!$C$240 -> Sale of water | Q8: =IF(C8='List of dropdown'!$A$29,SUM(D8:O8),IF(C8='List of dropdown'!$A$30,P8,0)) -> 0
B9: =Translate!$C$241 -> Hire out of equipment | Q9: =IF(C9='List of dropdown'!$A$29,SUM(D9:O9),IF(C9='List of dropdown'!$A$30,P9,0)) -> 0
B10: =Translate!$C$242 -> Lease out storage space | Q10: =IF(C10='List of dropdown'!$A$29,SUM(D10:O10),IF(C10='List of dropdown'!$A$30,P10,0)) -> 0
B11: =Translate!$C$243 -> Lease out land | Q11: =IF(C11='List of dropdown'!$A$29,SUM(D11:O11),IF(C11='List of dropdown'!$A$30,P11,0)) -> 0
B12: =Translate!$C$244 -> Lease out labour | Q12: =IF(C12='List of dropdown'!$A$29,SUM(D12:O12),IF(C12='List of dropdown'!$A$30,P12,0)) -> 0
Q13: =IF(C13='List of dropdown'!$A$29,SUM(D13:O13),IF(C13='List of dropdown'!$A$30,P13,0)) -> 0
Q14: =IF(C14='List of dropdown'!$A$29,SUM(D14:O14),IF(C14='List of dropdown'!$A$30,P14,0)) -> 0
B15: =Translate!$C$245 -> TOTAL OTHER INCOME per month/year | D15: =SUMIF($C$8:$C$14,'List of dropdown'!$A$29,D8:D14) -> 0 | E15: =SUMIF($C$8:$C$14,'List of dropdown'!$A$29,E8:E14) -> 0 | F15: =SUMIF($C$8:$C$14,'List of dropdown'!$A$29,F8:F14) -> 0 | G15: =SUMIF($C$8:$C$14,'List of dropdown'!$A$29,G8:G14) -> 0 | H15: =SUMIF($C$8:$C$14,'List of dropdown'!$A$29,H8:H14) -> 0 | I15: =SUMIF($C$8:$C$14,'List of dropdown'!$A$29,I8:I14) -> 0 | J15: =SUMIF($C$8:$C$14,'List of dropdown'!$A$29,J8:J14) -> 0 | K15: =SUMIF($C$8:$C$14,'List of dropdown'!$A$29,K8:K14) -> 0 | L15: =SUMIF($C$8:$C$14,'List of dropdown'!$A$29,L8:L14) -> 0 | M15: =SUMIF($C$8:$C$14,'List of dropdown'!$A$29,M8:M14) -> 0 | N15: =SUMIF($C$8:$C$14,'List of dropdown'!$A$29,N8:N14) -> 0 | O15: =SUMIF($C$8:$C$14,'List of dropdown'!$A$29,O8:O14) -> 0 | P15: =SUMIF($C$8:$C$14,'List of dropdown'!$A$30,P8:P14) -> 0 | Q15: =+SUM(Q8:Q14) -> 0

Sheet 5 Financing
A1: =Translate!$C$249 -> INVEST – Farm Analysis Tool
A2: =Translate!$C$250 -> 5 CREDIT AND FINANCING (simplified calculator, to be confirmed with loan provider)
H4: =Translate!$C$251 -> Farm code/name | K4: ='1 General Information'!C6 -> 0
A6: =Translate!$C$252 -> Calculator | I6: =Translate!$C$263 -> Enter manually:
A7: =Translate!$C$253 -> Bank name | B7: =Translate!$C$254 -> Loan amount | C7: =Translate!$C$255 -> Credit period (years) | D7: =Translate!$C$256 -> Month of taking credit | E7: =Translate!$C$257 -> Year of taking credit | F7: =Translate!$C$258 -> Annual interest rate | G7: =Translate!$C$259 -> Monthly loan repayment | J7: =Translate!$C$264 -> Note: the Calculator value will take precedence to the manual value. Ensure calculator value is 0 in order to use manual value.
H8: =Translate!$C$262 -> OR
B10: 7000 | C10: 3 | D10: 1 | E10: 2018 | F10: 0.08 | G10: =IF(D10,-PMT(F10/12,C10*12,B10),"0") -> 219.3545582
G11: =IF(D11,-PMT(F11/12,C11*12,B11),"0") -> 0
G12: =IF(D12,-PMT(F12/12,C12*12,B12),"0") -> 0
G13: 0
G14: 0
G15: 0
G16: 0
A17: =Translate!$C$260 -> TOTAL CREDIT | B17: =SUM(B10:B16) -> 7000 | G17: =SUM(G10:G16) -> 219.3545582 | I17: =SUM(I10:I15) -> 0
C18: =Translate!$C$261 -> Total Annual Loan Repayments | G18: =G17*12 -> 2632.254699 | I18: =I17*12 -> 0

Sheet 6 Fixed and Variable Costs
A1: =Translate!C266 -> INVEST – Farm Analysis Tool
B2: =Translate!$C$267 -> 6 COSTS (FIXED and VARIABLE)
K4: =Translate!$C$268 -> Farm code/name | N4: ='1 General Information'!C6 -> 0
B6: =Translate!$C$269 -> Month | C6: =Translate!$C$270 -> Monthly/Yearly Costs | D6: =Translate!$C$271 -> January | E6: =Translate!$C$272 -> February | F6: =Translate!$C$273 -> March | G6: =Translate!$C$274 -> April | H6: =Translate!$C$275 -> May | I6: =Translate!$C$276 -> June | J6: =Translate!$C$277 -> July | K6: =Translate!$C$278 -> August | L6: =Translate!$C$279 -> September | M6: =Translate!$C$280 -> October | N6: =Translate!$C$281 -> November | O6: =Translate!$C$282 -> December | P6: =Translate!$C$283 -> Yearly Costs | Q6: =Translate!$C$284 -> Total
D7: 1 | E7: 2 | F7: 3 | G7: 4 | H7: 5 | I7: 6 | J7: 7 | K7: 8 | L7: 9 | M7: 10 | N7: 11 | O7: 12
B8: =Translate!$C$285 -> FIXED COSTS
B9: =Translate!$C$286 -> Financing fees | C9: ='List of dropdown'!$A$29 -> Monthly | D9: ='5 Financing'!$G$17 -> 219.3545582 | E9: ='5 Financing'!$G$17 -> 219.3545582 | F9: ='5 Financing'!$G$17 -> 219.3545582 | G9: ='5 Financing'!$G$17 -> 219.3545582 | H9: ='5 Financing'!$G$17 -> 219.3545582 | I9: ='5 Financing'!$G$17 -> 219.3545582 | J9: ='5 Financing'!$G$17 -> 219.3545582 | K9: ='5 Financing'!$G$17 -> 219.3545582 | L9: ='5 Financing'!$G$17 -> 219.3545582 | M9: ='5 Financing'!$G$17 -> 219.3545582 | N9: ='5 Financing'!$G$17 -> 219.3545582 | O9: ='5 Financing'!$G$17 -> 219.3545582 | P9: =SUM(D9:O9) -> 2632.254699 | Q9: =IF(C9='List of dropdown'!$A$29,SUM(D9:O9),IF(C9='List of dropdown'!$A$30,P9,0)) -> 2632.254699
B10: =Translate!$C$287 -> Depreciation costs | C10: ='List of dropdown'!$A$30 -> Yearly | P10: ='2 Equipment & Assets'!$G$38 -> 2777.777778 | Q10: =IF(C10='List of dropdown'!$A$29,SUM(D10:O10),IF(C10='List of dropdown'!$A$30,P10,0)) -> 2777.777778
B11: =Translate!$C$288 -> Membership fees | Q11: =IF(C11='List of dropdown'!$A$29,SUM(D11:O11),IF(C11='List of dropdown'!$A$30,P11,0)) -> 0
B12: =Translate!$C$289 -> Insurance costs | Q12: =IF(C12='List of dropdown'!$A$29,SUM(D12:O12),IF(C12='List of dropdown'!$A$30,P12,0)) -> 0
B13: =Translate!$C$290 -> Land tax | Q13: =IF(C13='List of dropdown'!$A$29,SUM(D13:O13),IF(C13='List of dropdown'!$A$30,P13,0)) -> 0
B14: =Translate!$C$291 -> Social fund contribution | Q14: =IF(C14='List of dropdown'!$A$29,SUM(D14:O14),IF(C14='List of dropdown'!$A$30,P14,0)) -> 0
B15: =Translate!$C$292 -> Leasing fees for equipment | Q15: =IF(C15='List of dropdown'!$A$29,SUM(D15:O15),IF(C15='List of dropdown'!$A$30,P15,0)) -> 0
B16: =Translate!$C$293 -> Rental costs for land | Q16: =IF(C16='List of dropdown'!$A$29,SUM(D16:O16),IF(C16='List of dropdown'!$A$30,P16,0)) -> 0
B17: - | Q17: =IF(C17='List of dropdown'!$A$29,SUM(D17:O17),IF(C17='List of dropdown'!$A$30,P17,0)) -> 0
B18: - | Q18: =IF(C18='List of dropdown'!$A$29,SUM(D18:O18),IF(C18='List of dropdown'!$A$30,P18,0)) -> 0
B19: =Translate!$C$294 -> TOTAL FIXED COSTS per month/year | D19: =SUMIF($C$9:$C$18,'List of dropdown'!$A$29,D$9:D$18) -> 219.3545582 | E19: =SUMIF($C$9:$C$18,'List of dropdown'!$A$29,E$9:E$18) -> 219.3545582 | F19: =SUMIF($C$9:$C$18,'List of dropdown'!$A$29,F$9:F$18) -> 219.3545582 | G19: =SUMIF($C$9:$C$18,'List of dropdown'!$A$29,G$9:G$18) -> 219.3545582 | H19: =SUMIF($C$9:$C$18,'List of dropdown'!$A$29,H$9:H$18) -> 219.3545582 | I19: =SUMIF($C$9:$C$18,'List of dropdown'!$A$29,I$9:I$18) -> 219.3545582 | J19: =SUMIF($C$9:$C$18,'List of dropdown'!$A$29,J$9:J$18) -> 219.3545582 | K19: =SUMIF($C$9:$C$18,'List of dropdown'!$A$29,K$9:K$18) -> 219.3545582 | L19: =SUMIF($C$9:$C$18,'List of dropdown'!$A$29,L$9:L$18) -> 219.3545582 | M19: =SUMIF($C$9:$C$18,'List of dropdown'!$A$29,M$9:M$18) -> 219.3545582 | N19: =SUMIF($C$9:$C$18,'List of dropdown'!$A$29,N$9:N$18) -> 219.3545582 | O19: =SUMIF($C$9:$C$18,'List of dropdown'!$A$29,O$9:O$18) -> 219.3545582 | P19: =SUMIF($C$9:$C$18,'List of dropdown'!$A$30,P$9:P$18) -> 2777.777778 | Q19: =+SUM(Q9:Q18) -> 5410.032477
B21: =Translate!$C$295 -> VARIABLE COSTS
B22: =Translate!$C$296 -> Fuel and gas costs | P22: 10000 | Q22: =IF(C22='List of dropdown'!$A$29,SUM(D22:O22),IF(C22='List of dropdown'!$A$30,P22,0)) -> 0
B23: =Translate!$C$297 -> Water fees | Q23: =IF(C23='List of dropdown'!$A$29,SUM(D23:O23),IF(C23='List of dropdown'!$A$30,P23,0)) -> 0
B24: =Translate!$C$298 -> Electricity fees | Q24: =IF(C24='List of dropdown'!$A$29,SUM(D24:O24),IF(C24='List of dropdown'!$A$30,P24,0)) -> 0
B25: =Translate!$C$299 -> Transport fees | Q25: =IF(C25='List of dropdown'!$A$29,SUM(D25:O25),IF(C25='List of dropdown'!$A$30,P25,0)) -> 0
B26: =Translate!$C$300 -> Salary costs (permanent staff) | Q26: =IF(C26='List of dropdown'!$A$29,SUM(D26:O26),IF(C26='List of dropdown'!$A$30,P26,0)) -> 0
B27: =Translate!$C$301 -> Salary costs (temporary staff) | Q27: =IF(C27='List of dropdown'!$A$29,SUM(D27:O27),IF(C27='List of dropdown'!$A$30,P27,0)) -> 0
B28: =Translate!$C$302 -> Seeds | Q28: =IF(C28='List of dropdown'!$A$29,SUM(D28:O28),IF(C28='List of dropdown'!$A$30,P28,0)) -> 0
B29: =Translate!$C$303 -> Manure and fertilizer | Q29: =IF(C29='List of dropdown'!$A$29,SUM(D29:O29),IF(C29='List of dropdown'!$A$30,P29,0)) -> 0
B30: =Translate!$C$304 -> Plant protection | Q30: =IF(C30='List of dropdown'!$A$29,SUM(D30:O30),IF(C30='List of dropdown'!$A$30,P30,0)) -> 0
B31: =Translate!$C$305 -> Fodder | Q31: =IF(C31='List of dropdown'!$A$29,SUM(D31:O31),IF(C31='List of dropdown'!$A$30,P31,0)) -> 0
B32: =Translate!$C$306 -> Veterinary Services | Q32: =IF(C32='List of dropdown'!$A$29,SUM(D32:O32),IF(C32='List of dropdown'!$A$30,P32,0)) -> 0
B33: =Translate!$C$307 -> Traction and mechanisation hire | Q33: =IF(C33='List of dropdown'!$A$29,SUM(D33:O33),IF(C33='List of dropdown'!$A$30,P33,0)) -> 0
B34: =Translate!$C$308 -> Machinery repairs and maintenance | Q34: =IF(C34='List of dropdown'!$A$29,SUM(D34:O34),IF(C34='List of dropdown'!$A$30,P34,0)) -> 0
B35: =Translate!$C$309 -> Infrastructure repairs and maintenance | Q35: =IF(C35='List of dropdown'!$A$29,SUM(D35:O35),IF(C35='List of dropdown'!$A$30,P35,0)) -> 0
B36: =Translate!$C$310 -> Irrigation repair and maintenance | Q36: =IF(C36='List of dropdown'!$A$29,SUM(D36:O36),IF(C36='List of dropdown'!$A$30,P36,0)) -> 0
B37: - | Q37: =IF(C37='List of dropdown'!$A$29,SUM(D37:O37),IF(C37='List of dropdown'!$A$30,P37,0)) -> 0
B38: - | Q38: =IF(C38='List of dropdown'!$A$29,SUM(D38:O38),IF(C38='List of dropdown'!$A$30,P38,0)) -> 0
B39: =Translate!$C$311 -> VARIABLE COSTS per month/month | D39: =SUMIF($C$22:$C$38,'List of dropdown'!$A$29,D$22:D$38) -> 0 | E39: =SUMIF($C$22:$C$38,'List of dropdown'!$A$29,E$22:E$38) -> 0 | F39: =SUMIF($C$22:$C$38,'List of dropdown'!$A$29,F$22:F$38) -> 0 | G39: =SUMIF($C$22:$C$38,'List of dropdown'!$A$29,G$22:G$38) -> 0 | H39: =SUMIF($C$22:$C$38,'List of dropdown'!$A$29,H$22:H$38) -> 0 | I39: =SUMIF($C$22:$C$38,'List of dropdown'!$A$29,I$22:I$38) -> 0 | J39: =SUMIF($C$22:$C$38,'List of dropdown'!$A$29,J$22:J$38) -> 0 | K39: =SUMIF($C$22:$C$38,'List of dropdown'!$A$29,K$22:K$38) -> 0 | L39: =SUMIF($C$22:$C$38,'List of dropdown'!$A$29,L$22:L$38) -> 0 | M39: =SUMIF($C$22:$C$38,'List of dropdown'!$A$29,M$22:M$38) -> 0 | N39: =SUMIF($C$22:$C$38,'List of dropdown'!$A$29,N$22:N$38) -> 0 | O39: =SUMIF($C$22:$C$38,'List of dropdown'!$A$29,O$22:O$38) -> 0 | P39: =SUMIF($C$22:$C$38,'List of dropdown'!$A$30,P$22:P$38) -> 0 | Q39: =+SUM(Q22:Q38) -> 0

Sheet 7 Farm Income Statement
B1: =Translate!C313 -> INVEST – Farm Analysis Tool
B2: =Translate!$C$314 -> 7 FARM INCOME STATEMENT
E4: =Translate!$C$315 -> Farm code/name | G4: ='1 General Information'!C6 -> 0
C6: + | D6: =Translate!$C$316 -> Gross value of seasonal crop production | E6: =SUM('3 Income Crops & Livestock'!H10:H15) -> 0 | F6: ='1 General Information'!$D$13 -> € | G6: + | H6: =IF($E$16=0,0,(+E6/$E$16)*(1-$E$14)) -> 0
C7: + | D7: =Translate!$C$317 -> Gross value of seasonal crop by-product production | E7: =SUM('3 Income Crops & Livestock'!H17:H19) -> 0 | F7: ='1 General Information'!$D$13 -> € | G7: + | H7: =IF($E$16=0,0,(+E7/$E$16)*(1-$E$14)) -> 0
C8: + | D8: =Translate!$C$318 -> Gross value of perennial crop production | E8: =SUM('3 Income Crops & Livestock'!H27:H31) -> 0 | F8: ='1 General Information'!$D$13 -> € | G8: + | H8: 0
C9: + | D9: =Translate!$C$319 -> Gross value of perennial crop by-product production | E9: =SUM('3 Income Crops & Livestock'!H33:H35) -> 0 | F9: ='1 General Information'!$D$13 -> € | G9: + | H9: 0
C10: + | D10: =Translate!$C$320 -> Gross value of livestock production | E10: =SUM('3 Income Crops & Livestock'!H44:H57) -> 0 | F10: ='1 General Information'!$D$13 -> € | G10: + | H10: 0
C11: + | D11: =Translate!$C$321 -> Gross value of livestock by-product production | E11: =SUM('3 Income Crops & Livestock'!H59:H63) -> 60000 | F11: ='1 General Information'!$D$13 -> € | G11: + | H11: 1
C12: + | D12: =Translate!$C$322 -> Gross value of other income | E12: ='4 Other Income'!Q15 -> 0 | F12: ='1 General Information'!$D$13 -> € | G12: + | H12: 0
C14: - | D14: =Translate!$C$323 -> Anticipated losses of total sales (reduction factor) | E14: 0.1 | F14: %
C16: = | D16: =Translate!$C$324 -> GROSS FARM INCOME | E16: =SUM(E6:E12)-(SUM(E6:E12)*E14) -> 54000 | F16: ='1 General Information'!$D$13 -> € | G16: = | H16: =SUM(H6:H12) -> 1
C19: - | D19: =Translate!$C$325 -> Total fixed costs | E19: ='6 Fixed and Variable Costs'!Q19 -> 5410.032477 | F19: ='1 General Information'!$D$13 -> € | G19: + | H19: =IF($E$21=0,0,+E19/$E$21) -> 1
C20: - | D20: =Translate!$C$326 -> Total variable costs | E20: ='6 Fixed and Variable Costs'!Q39 -> 0 | F20: ='1 General Information'!$D$13 -> € | G20: + | H20: =IF($E$21=0,0,+E20/$E$21) -> 0
C21: = | D21: =Translate!$C$327 -> TOTAL COST | E21: =SUM(E19:E20) -> 5410.032477 | F21: ='1 General Information'!$D$13 -> € | G21: = | H21: =SUM(H19:H20) -> 1
C57: = | D57: =Translate!$C$328 &" " & '1 General Information'!$D$12 & " " &Translate!$C$329 & " "& '1 General Information'!$E$12 -> GROSS FARM PROFIT for the period 2021 to 2022 | G57: =E16-E21 -> 48589.96752 | H57: ='1 General Information'!$D$13 -> €
D58: =Translate!$C$330 -> Farm Profit Margin | G58: =(E16-E21)/E16 -> 0.8998142134
D60: =Translate!$C$331 &" "&'1 General Information'!$D$14& " " & Translate!$C$332 -> Average profit per ha for seasonal crops: | F60: =IFERROR('3 Income Crops & Livestock'!H20/MAX('3 Income Crops & Livestock'!C6:D6),Translate!$C$337) -> no crops | H60: ='1 General Information'!$D$13&" " &Translate!$C$336&" "&'1 General Information'!$D$14 -> € per ha
D61: =Translate!$C$331 &" "&'1 General Information'!$D$14&" " &Translate!$C$333 -> Average profit per ha for perennial crops: | F61: =IFERROR('3 Income Crops & Livestock'!H36/'3 Income Crops & Livestock'!D23,Translate!$C$337) -> no crops | H61: ='1 General Information'!$D$13&" " &Translate!$C$336&" "&'1 General Information'!$D$14 -> € per ha
D62: =Translate!$C$334 -> Average profit per head of livestock: | F62: =IFERROR('3 Income Crops & Livestock'!H64/('3 Income Crops & Livestock'!G40+'3 Income Crops & Livestock'!D40),Translate!$C$338) -> 12000 | H62: ='1 General Information'!$D$13& " " & Translate!C339 -> € per head
D63: =Translate!$C$335 -> Total crop area under cultivation: | F63: =MAX('3 Income Crops & Livestock'!C6:D6)+'3 Income Crops & Livestock'!D23 -> 0 | H63: ='1 General Information'!D14 -> ha
D64: =IF(F63>'1 General Information'!H36,Translate!$C$343,"") -> 

Sheet Crop Price Calculation Sheet
A1: =Translate!$C$345 -> INVEST – Farm Analysis Tool
A2: =Translate!$C$346 -> Supplementary sheet for calculating average annual costs for selected crops and livestock based on seasonal monthly variations
B3: ='6 Fixed and Variable Costs'!D6 -> January | C3: ='6 Fixed and Variable Costs'!E6 -> February | D3: ='6 Fixed and Variable Costs'!F6 -> March | E3: ='6 Fixed and Variable Costs'!G6 -> April | F3: ='6 Fixed and Variable Costs'!H6 -> May | G3: ='6 Fixed and Variable Costs'!I6 -> June | H3: ='6 Fixed and Variable Costs'!J6 -> July | I3: ='6 Fixed and Variable Costs'!K6 -> August | J3: ='6 Fixed and Variable Costs'!L6 -> September | K3: ='6 Fixed and Variable Costs'!M6 -> October | L3: ='6 Fixed and Variable Costs'!N6 -> November | M3: ='6 Fixed and Variable Costs'!O6 -> December | N3: =Translate!$C$347 -> AVERAGE
B4: ='3 Income Crops & Livestock'!$G$7 -> Unit Price | C4: ='3 Income Crops & Livestock'!$G$7 -> Unit Price | D4: ='3 Income Crops & Livestock'!$G$7 -> Unit Price | E4: ='3 Income Crops & Livestock'!$G$7 -> Unit Price | F4: ='3 Income Crops & Livestock'!$G$7 -> Unit Price | G4: ='3 Income Crops & Livestock'!$G$7 -> Unit Price | H4: ='3 Income Crops & Livestock'!$G$7 -> Unit Price | I4: ='3 Income Crops & Livestock'!$G$7 -> Unit Price | J4: ='3 Income Crops & Livestock'!$G$7 -> Unit Price | K4: ='3 Income Crops & Livestock'!$G$7 -> Unit Price | L4: ='3 Income Crops & Livestock'!$G$7 -> Unit Price | M4: ='3 Income Crops & Livestock'!$G$7 -> Unit Price | N4: ='3 Income Crops & Livestock'!$G$7 -> Unit Price
A5: =Translate!$C$348 -> Seasonal Crops
A6: ='3 Income Crops & Livestock'!B10 -> Tomato | N6: =AVERAGE(B6:M6) -> 
A7: ='3 Income Crops & Livestock'!B11 -> Maize | N7: =AVERAGE(B7:M7) -> 
A8: ='3 Income Crops & Livestock'!B12 -> Tomato
A9: ='3 Income Crops & Livestock'!B13 -> Beans
A10: ='3 Income Crops & Livestock'!B15 -> 0
A11: ='3 Income Crops & Livestock'!$B$16 -> By-products:
A12: ='3 Income Crops & Livestock'!B17 -> 0
A13: ='3 Income Crops & Livestock'!B18 -> 0
A14: ='3 Income Crops & Livestock'!B19 -> 0
A15: =Translate!$C$349 -> Perennial crops
A16: ='3 Income Crops & Livestock'!B27 -> 0
A17: ='3 Income Crops & Livestock'!B28 -> 0
A18: ='3 Income Crops & Livestock'!B29 -> 0
A19: ='3 Income Crops & Livestock'!B30 -> 0
A20: ='3 Income Crops & Livestock'!B31 -> 0
A21: ='3 Income Crops & Livestock'!$B$16 -> By-products:
A22: ='3 Income Crops & Livestock'!B33 -> 0
A23: ='3 Income Crops & Livestock'!B34 -> 0
A24: ='3 Income Crops & Livestock'!B35 -> 0
A25: =Translate!$C$350 -> Livestock
A26: ='3 Income Crops & Livestock'!B44 -> Dairy cows
A27: ='3 Income Crops & Livestock'!B45 -> Heifers
A28: ='3 Income Crops & Livestock'!B46 -> Adult steers
A29: ='3 Income Crops & Livestock'!B47 -> Juvenile steers
A30: ='3 Income Crops & Livestock'!B48 -> Calfs
A31: ='3 Income Crops & Livestock'!B49 -> Sheep does
A32: ='3 Income Crops & Livestock'!B50 -> Sheep bucks
A33: ='3 Income Crops & Livestock'!B51 -> Sheep kids
A34: ='3 Income Crops & Livestock'!B52 -> Goat does
A35: ='3 Income Crops & Livestock'!B53 -> Goat bucks
A36: ='3 Income Crops & Livestock'!B54 -> Goat kids
A37: ='3 Income Crops & Livestock'!B55 -> Chickens
A38: ='3 Income Crops & Livestock'!B56 -> 0
A39: ='3 Income Crops & Livestock'!B57 -> 0
A40: ='3 Income Crops & Livestock'!$B$16 -> By-products:
A41: ='3 Income Crops & Livestock'!B59 -> Milk
A42: ='3 Income Crops & Livestock'!B60 -> Eggs
A43: ='3 Income Crops & Livestock'!B61 -> Skins
A44: ='3 Income Crops & Livestock'!B62 -> Manure
A45: ='3 Income Crops & Livestock'!B63 -> 0

Sheet Quick Check
B1: =Translate!$C$352 -> INVEST – Farm Analysis Tool
B2: =Translate!$C$353 -> QUICK CHECK
B5: =Translate!$C$354 -> Annual Expenditure
B6: =Translate!$C$355 -> Expenditure Type | C6: =Translate!$C$356 -> Examples | D6: =Translate!$C$357 -> Annual Amount
B7: =Translate!$C$358 -> Seasonal crop expenses | C7: =Translate!$C$367 -> Seedlings, pesticides, fertilisers, protection, etc | F7: =Translate!$C$397 -> Calculator
B8: =Translate!$C$359 -> Perennial crop expenses | C8: =Translate!$C$368 -> Seedlings, pesticides, fertilisers, protection, etc | G8: =Translate!$C$398 -> add up: | H8: =Translate!$C$399 -> multiply: | I8: =Translate!$C$400 -> divide:
B9: =Translate!$C$360 -> Livestock expenses | C9: =Translate!$C$369 -> New livestock, fodder, slaughtering, veterinary services, etc | F9: =Translate!$C$401 -> a.
B10: =Translate!$C$361 -> Operation and maintenance - Infrastructure | C10: =Translate!$C$370 -> Building renovations, painting, plastering, fencing, electricity, water, etc | F10: =Translate!$C$402 -> b.
B11: =Translate!$C$362 -> Operation and maintenance - Fixed equipment | C11: =Translate!$C$371 -> Water pumps, irrigation equipment, packaging equipment, milling, fuel, spare parts, repairs, etc | F11: =Translate!$C$403 -> c.
B12: =Translate!$C$363 -> Operation and maintenance - Movable equipment | C12: =Translate!$C$372 -> Tractor, trucks, plough, trailer, fuel, spare parts, repairs, etc | F12: =Translate!$C$404 -> d.
B13: =Translate!$C$364 -> Labour | C13: =Translate!$C$373 -> Salaries, benefits, own salary (?) etc | F13: =Translate!$C$405 -> e.
B14: =Translate!$C$365 -> Sales and distribution | C14: =Translate!$C$374 -> Packaging, fees, advertising, etc | F14: =Translate!$C$406 -> Total | G14: =SUM(G9:G13) -> 0 | H14: =H9*H10 -> 0 | I14: =I9/I10 -> 
B15: =Translate!$C$366 -> Management and administration | C15: =Translate!$C$375 -> Rent, office consumables, insurance, memberships, loan repayments, etc
D17: =SUM(D7:D16) -> 0
B19: =Translate!$C$376 -> Annual Income
B20: =Translate!$C$377 -> Income Type | C20: =Translate!$C$356 -> Examples | D20: =Translate!$C$357 -> Annual Amount
B21: =Translate!$C$378 -> Seasonal crop sales | C21: =Translate!$C$386 -> Tomatos, grain, rice, value added product, etc
B22: =Translate!$C$379 -> By-products from seasonal crops | C22: =Translate!$C$387 -> Compost, fodder, value added product, etc
B23: =Translate!$C$380 -> Perennial crop sales | C23: =Translate!$C$388 -> Citrus, apples, dates, berries, value added product, etc
B24: =Translate!$C$381 -> By-products from perennial crops | C24: =Translate!$C$389 -> Wood fuel, mulch, value added product, etc
B25: =Translate!$C$382 -> Livestock sales | C25: =Translate!$C$390 -> Cattle, sheep, chickens, etc | D25: 12
B26: =Translate!$C$383 -> By-products from livestock | C26: =Translate!$C$391 -> Manure, eggs, milk, wool, value added product, etc
B27: =Translate!$C$384 -> Lease income | C27: =Translate!$C$392 -> Labour, vehicles, land, etc
B28: =Translate!$C$385 -> Services income | C28: =Translate!$C$393 -> Subcontract work, maintenance service, packaging service, transport, etc
D30: =SUM(D21:D29) -> 12
C32: =Translate!$C$394 -> Profit or loss | D32: =D30-D17 -> 12
B33: =IF(D32>0,Translate!$C$395,(IF(D32<0,Translate!$C$396,""))) -> This activity is profitable! Proceed with a detailed analysis to be sure.

Sheet Translate
B2: =$C$19 -> Do not modify this sheet
B5: =$C$20 -> Reference Row
B6: =$C$21 -> Selected Language: | C6: ='READ ME'!$G$11 -> English | D6: English | E6: Français | F6: Español | G6: العربية
B7: =$C$22 -> Sheet name | C7: =HLOOKUP($C$6,$D$6:$I$594,ROW()-ROW($B$5),FALSE) -> READ ME | D7: READ ME | E7: LISER MOI | F7: LÉEME | G7: اقرأ هذه الصفحة
C8: 1 General Information | D8: 1 General Information | E8: 1 Informations générales | F8: 1 Información general | G8: 1 معلومات عامة
C9: 2 Equipment & Assets | D9: 2 Equipment & Assets | E9: 2 Équipements et actifs | F9: 2 Equipamiento y activos | G9: 2 المعدات والأصول
C10: 3 Income Crops & Livestock | D10: 3 Income Crops & Livestock | E10: 3 Recettes cultures & élévage | F10: 3 Ingresos cultivo y ganado | G10: 3 دخل المحاصيل والثروة الحيوانية
C11: 4 Other Income | D11: 4 Other Income | E11: 4 Autres recettes | F11: 4 Otros ingresos | G11: 4 مداخيل أخرى
C12: 5 Financing | D12: 5 Financing | E12: 5 Financement | F12: 5 Financiación | G12: 5 التمويل
C13: 6 Fixed and Variable Costs | D13: 6 Fixed and Variable Costs | E13: 6 Coûts Fixes et Variables | F13: 6 Costos fijos y variables | G13: 6 التكاليف الثابتة والمتغيرة
C14: 7 Farm Income Statement | D14: 7 Farm Income Statement | E14: 7 Compte de résultat de l’exploitation | F14: 7 Declaración de ingresos de la explotación | G14: 7 بيان دخل المزرعة
C15: Crop Price Calculation Sheet | D15: Crop Price Calculation Sheet | E15: Feuille de calcul des prix des cultures | F15: Hoja de calculación de precios | G15: ورقة حساب سعر المحاصيل
C16: Quick Check | D16: Quick Check | E16: Contrôle rapide | F16: Verificación rápida | G16: فحص سريع
C17: Translate | D17: Translate | E17: Traduire | F17: Traducción | G17: ترجمة
B19: =$C$17 -> Translate | C19: =HLOOKUP($C$6,$D$6:$I$594,ROW()-ROW($B$5),FALSE) -> Do not modify this sheet | D19: Do not modify this sheet | E19: Ne modifiez pas cette feuille | F19: No modifique esta hoja | G19: لا تعدل هذه الصفحة
C20: =HLOOKUP($C$6,$D$6:$I$594,ROW()-ROW($B$5),FALSE) -> Reference Row | D20: Reference Row | E20: Ligne de référence | F20: Fila de referencia | G20: صف مرجعي
C21: =HLOOKUP($C$6,$D$6:$I$594,ROW()-ROW($B$5),FALSE) -> Selected Language: | D21: Selected Language: | E21: Langue sélectionnée: | F21: Idioma seleccionado: | G21: اللغة المختارة:
C22: =HLOOKUP($C$6,$D$6:$I$594,ROW()-ROW($B$5),FALSE) -> Sheet name | D22: Sheet name | E22: Nom de la feuille | F22: Nombre de la hoja | G22: اسم الصفحة
B24: =$C$7 -> READ ME | C24: =HLOOKUP($C$6,$D$6:$I$594,ROW()-ROW($B$5),FALSE) -> Select language | D24: Select language | E24: Sélectionner la langue | F24: Seleccione el idioma | G24: اختار اللغة
C25: Read Me Sheet | D25: Read Me Sheet | E25: Feuille Lisez-moi | F25: Léeme | G25: اقرأ هذه الصفحة
C26: INVEST – Farm Analysis Tool | D26: INVEST – Farm Analysis Tool | E26: INVESTIR – Outil d’analyse de l’exploitation agricole | F26: INVIERTE – Herramienta de cálculo del balance económico | G26: استثمار - أداة تحليل المزرعة
C27: Introduction | D27: Introduction | E27: Introduction | F27: Introducción | G27: مقدمة
C28: This tool allows for the assessment of on-farm productivity and profitability through its average annual agricultural production. The tool is useful for establishing a baseline or assessing the impact of planned investments. This tool allows an SPIS advisor (supplier, development practitioner, extension officer) to support a farm enterprise towards identify unnecessary costs, determine best value agricultural activities and correctly monetize different farm inputs. | D28: This tool allows for the assessment of on-farm productivity and profitability through its average annual agricultural production. The tool is useful for establishing a baseline or assessing the impact of planned investments. This tool allows an SPIS advisor (supplier, development practitioner, extension officer) to support a farm enterprise towards identify unnecessary costs, determine best value agricultural activities and correctly monetize different farm inputs. | E28: Cet outil permet d’évaluer la productivité et la rentabilité d’une exploitation en se fondant sur sa production agricole annuelle moyenne. Il permet d’établir des valeurs de référence ou d’évaluer l’impact d’investissements prévus. L’outil permet à un conseiller en SPIS (fournisseur, professionnel du développement, agent de vulgarisation) d’aider une exploitation agricole à identifier les coûts inutiles, à déterminer les activités qui apportent le plus de valeur et à bien rentabiliser les différents intrants. | F28: Esta herramienta permite evaluar la productividad y rentabilidad de una explotación a través de su producción agrícola anual promedio. La herramienta resulta útil para establecer una referencia o evaluar el impacto de inversiones planificadas y permite al asesor o asesora de SPIS (proveedor, profesional de desarrollo, funcionario o funcionaria de extensión agraria) ayudar a identificar costos innecesarios en una granja, determinar actividades agrícolas con el máximo beneficio y generar correctamente beneficios económicos a partir de diferentes insumos agrícolas. | G28: تسمح هذه الأداة بتقييم الإنتاجية والربحية في المزرعة من خلال متوسط ​​الإنتاج الزراعي السنوي. هذه الأداة مفيدة لإنشاء خط أساس أو تقييم تأثير الاستثمارات المخطط لها. تتيح هذه الأداة لمستشار أنظمة الريّ بالطاقة الشمسية (مورد ، ممارس تطوير ، مسؤول إرشاد) دعم مشروع مزرعة لتحديد التكاليف الغير ضرورية ، وتحديد أفضل الأنشطة الزراعية ، وتحقيق الدخل بشكل صحيح من المدخلات الزراعية المختلفة.
C29: Tips & Tricks | D29: Tips & Tricks | E29: Conseils et Astuces | F29: Consejos y trucos | G29: نصائح وحيل
C30: ● Make sure that macro is always enabled for the proper functioning of this tool | D30: ● Make sure that macro is always enabled for the proper functioning of this tool | E30: ● Assurez-vous que les macros sont toujours activées pour le bon fonctionnement de cet outil | F30: ● Asegúrese de que la macro esté siempre habilitada para el correcto funcionamiento de esta herramienta. | G30: ● تأكد من تمكين الماكرو دائمًا من أجل حسن سير هذه الأداة
C31: ● Only enter values into white cells | D31: ● Only enter values into white cells | E31: ● Saisissez des valeurs uniquement dans les cellules blanches | F31: ● Solo ingrese valores en las celdas blancas. | G31: ● أدخل القيم فقط في الخلايا البيضاء
C32: ● This tool comprises drop down lists and macros to simplify data entry and results review. | D32: ● This tool comprises drop down lists and macros to simplify data entry and results review. | E32: ● Cet outil contient des listes déroulantes et des macros pour simplifier la saisie des données et la présentation des résultats | F32: ● Esta herramienta incluye listas desplegables y macros para simplificar la entrada de datos y la revisión de resultados. | G32: ● تتضمن هذه الأداة قوائم منسدلة ووحدات ماكرو لتبسيط إدخال البيانات ومراجعة النتائج.
C33: ● For the multilanguage option to work properly, do NOT delete sheets | D33: ● For the multilanguage option to work properly, do NOT delete sheets | E33: ● Pour que l'option multilingue fonctionne correctement, ne supprimez PAS les feuilles | F33: ● Para que la opción de varios idiomas funcione correctamente, NO elimine las hojas. | G33: ● لكي يعمل خيار اللغات المتعددة بشكل صحيح ، لا تحذف الصفحات
C34: ● This tool provides an indicative assessment of farm profitability and should be complemented by deeper and more detailed assessments, market analysis, and other due diligence, before committing to large-scale investments. | D34: ● This tool provides an indicative assessment of farm profitability and should be complemented by deeper and more detailed assessments, market analysis, and other due diligence, before committing to large-scale investments. | E34: ● Cet outil fournit une évaluation indicative de la rentabilité des exploitations agricoles et devrait être complété par des évaluations plus approfondies et plus détaillées, des analyses de marché et d'autres contrôles préalables, avant de s'engager dans des investissements à grande échelle. | F34: ● Esta herramienta proporciona una evaluación indicativa de la rentabilidad de la explotación y debería complementarse con evaluaciones más detalladas y más profundas, análisis de mercado y otras actividades de debida diligencia antes de comprometerse a hacer inversiones a gran escala. | G34: ● توفر هذه الأداة تقييمًا إرشاديًا لربحية المزرعة ويجب استكمالها بتقييمات أعمق وأكثر تفصيلاً ، وتحليل السوق ، وغيرها من العناية الواجبة ، قبل الالتزام باستثمارات واسعة النطاق.
C35: ● This tool contains numerous critical formulas or calculations | D35: ● This tool contains numerous critical formulas or calculations | E35: ● Cet outil contient de nombreuses formules ou calculs critiques | F35: ● Esta herramienta contiene numerosas fórmulas o cálculos críticos | G35: ● تحتوي هذه الأداة على العديد من المعادلات أو الحسابات الهامة
C36: ● Make sure that this file is always saved as ".xlsm" | D36: ● Make sure that this file is always saved as ".xlsm" | E36: ● Assurez-vous que ce fichier est toujours enregistré sous ".xlsm" | F36: ● Asegúrese de que este archivo siempre se guarde como ".xlsm" | G36: ● تأكد من حفظ هذا الملف دائمًا باسم ".xlsm"
C37: Overview | D37: Overview | E37: Aperçu | F37: Sinopsis | G37: نظرة عامة
C38: This tool comprises the following sheet: | D38: This tool comprises the following sheet: | E38: Cet outil est composé des feuilles suivantes: | F38: Esta herramienta incluye las siguientes hojas: | G38: تتكون هذه الأداة من الصفحات التالية:
C39: farm name, location, and area | D39: farm name, location, and area | E39: nom, emplacement et région de la ferme | F39: nombre de la granja, ubicación y área | G39: اسم المزرعة والموقع والمنطقة
C40: currently available on the farm or considered for future purchases | D40: currently available on the farm or considered for future purchases | E40: actuellement disponibles sur l’exploitation ou dont l’acquisition prochaine est envisagée | F40: disponibles actualmente en la granja o que se contemplan en una futura compra | G40: متوفر حاليًا في المزرعة أو من المشتريات المستقبلية المخطط لها
C41: to add current or projected sales of seasonal crops (e.g. rice, maize), perennial crops (e.g. fruits), and livestock and respective by-products | D41: to add current or projected sales of seasonal crops (e.g. rice, maize), perennial crops (e.g. fruits), and livestock and respective by-products | E41: pour ajouter les ventes réelles ou prévues de cultures saisonnières (riz, maïs etc.), de cultures pluriannuelles (arbres fruitiers, etc.) et d'élevage et de produits dérivés | F41: añade ventas actuales o previstas de cultivos estacionales (p. ej. arroz, maíz) perennes (p. ej. árboles frutales) y de ganado y sus respectivos derivados | G41: لإضافة المبيعات الحالية أو المتوقعة للمحاصيل الموسمية (مثل الأرز والذرة) والمحاصيل المعمرة (مثل الفواكه) والمواشي والمنتجات الثانوية ذات الصلة
C42: additional income not directly related to crop or livestock production such as the sale of water or rental of equipment | D42: additional income not directly related to crop or livestock production such as the sale of water or rental of equipment | E42: recettes supplémentaires ne provenant pas directement de la production de cultures ou d’animaux d’élevage, par exemple, la vente d’eau ou la location d’équipements | F42: ingresos adicionales no relacionados directamente con la producción agrícola o ganadera, como son la venta de agua o el alquiler de equipamiento | G42: الدخل الإضافي غير المرتبط مباشرة بإنتاج المحاصيل أو الثروة الحيوانية مثل بيع المياه أو تأجير المعدات
C43: calculates annual loan repayment based on credit information | D43: calculates annual loan repayment based on credit information | E43: calcule le remboursement annuel du prêt en fonction de l'information sur le crédit | F43: calcula el reembolso anual del préstamo en función de la información crediticia | G43: يحسب سداد القرض السنوي بناءً على معلومات الائتمان
C44: to add all fixed and variable costs/expenditures of the farm enterprise | D44: to add all fixed and variable costs/expenditures of the farm enterprise | E44: pour ajouter tous les coûts/dépenses fixes et variables de l'entreprise agricole | F44: añade todos los costos fijos y variables/gastos de la empresa agrícola | G44: لإضافة جميع التكاليف الثابتة والمتغيرة / النفقات لمشروع المزرعة
C45: No Entry! Summary calculation on gross profitability of the farm enterprise | D45: No Entry! Summary calculation on gross profitability of the farm enterprise | E45: Pas de saisie ! Calcul de la rentabilité brute de l’exploitation | F45: ¡Sin entrada! Cálculo resumen de la rentabilidad bruta de la empresa agrícola | G45: ملخص حساب الربحية الإجمالية لمشروع المزرعة
C46: side sheet for calculating average annual crop and livestock prices | D46: side sheet for calculating average annual crop and livestock prices | E46: pour calculer les coûts annuels moyens de certaines cultures et de certains animaux d’élevage | F46: hoja de cálculo para determinar los precios anuales medios de los cultivos y del ganado | G46: ورقة جانبية لحساب متوسط أسعار المحاصيل والماشية السنوية
C47: side sheet for a quick calculation of farm profitability useful before conducting a full analysis | D47: side sheet for a quick calculation of farm profitability useful before conducting a full analysis | E47: calcul rapide de la rentabilité de l'exploitation utile avant d'effectuer une analyse complète | F47: hoja de cálculo adjunta para una evaluación básica de la rentabilidad de la explotación previa al análisis completo | G47: ورقة جانبية للحساب السريع لربحية المزرعة ، مفيدة قبل إجراء تحليل كامل
C48: About | D48: About | E48: En savoir plus | F48: Acerca de | G48: حول
C49: Published by: | D49: Published by: | E49: Publié par: | F49: Publicado por: | G49: نشرت من قبل:
C50: Responsible: | D50: Responsible: | E50: Responsables: | F50: Responsable: | G50: مسؤول:
C51: Contact: | D51: Contact: | E51: Contact: | F51: Contacto: | G51: اتصال:
C52: Download link: | D52: Download link: | E52: Lien de téléchargement: | F52: Enlace descarga: | G52: رابط التحميل:
C53: About: | D53: About: | E53: À propos de: | F53: Acerca de: | G53: حول:
C54: Version: | D54: Version: | E54: Version: | F54: Versión: | G54: إصدار:
C55: GIZ & FAO | D55: GIZ & FAO | E55: GIZ et FAO | F55: GIZ & FAO | G55: الوكالة الألمانية للتعاون الدولي (GIZ) ومنظمة الأغذية والزراعة (FAO)
C56: GIZ project "Water and Energy for Food (WE4F)" | D56: GIZ project "Water and Energy for Food (WE4F)" | E56: Projet de la GIZ « Les innovations dans l’agriculture et la production alimentaire protègent le climat (PEEPA/WE4F) » (Water and Energy for Food) | F56: GIZ project "Water and Energy for Food (WE4F)" | G56: مشروع الوكالة الألمانية للتعاون الدولي "المياه والطاقة من أجل الغذاء Water and Energy for Food (WE4F)"
C57: Water and Energy for Food Grand Challenge at: | D57: Water and Energy for Food Grand Challenge at: | E57: Eau et Energie pour l'Alimentation (PEEPA). Disponible à l’adresse : | F57: Water and Energy for Food Grand Challenge at: | G57: التحدي الكبير للمياه والطاقة من أجل الغذاء في:
C58: 3.0 (June 2021) | D58: 3.0 (June 2021) | E58: 3.0 (Juin 2021) | F58: 3.0 (Junio 2021) | G58: 3.0 (يونيو 2021)
C59: The Toolbox on Solar Powered Irrigation Systems (SPIS) is a legacy project of the global initiative Powering Agriculture: An Energy Grand Challenge for Development (PAEGC). In 2012, the United States Agency for International Development (USAID), the Swedish International Development Cooperation Agency (Sida), the German Federal Ministry for Economic Cooperation and Development (BMZ), Duke Energy, and the Overseas Private Investment Corporation (OPIC) combined resources to support new and sustainable approaches to accelerate the development and deployment of clean energy solutions for increasing agriculture productivity. The Toolbox on SPIS has now been embraced for further development by PAEGC's successor program Water and Energy for Food (WE4F). WE4F is a joint international initiative of the European Union (EU), German Federal Ministry for Economic Cooperation and Development (BMZ), the Ministry of Foreign Affairs of the Kingdom of the Netherlands, Sweden through the Swedish International Development Cooperation Agency (Sida), and the U.S. Agency for International Development (USAID). WE4F aims to increase food production along the value chain through a more sustainable and efficient usage of water and/or energy. | D59: The Toolbox on Solar Powered Irrigation Systems (SPIS) is a legacy project of the global initiative Powering Agriculture: An Energy Grand Challenge for Development (PAEGC). In 2012, the United States Agency for International Development (USAID), the Swedish International Development Cooperation Agency (Sida), the German Federal Ministry for Economic Cooperation and Development (BMZ), Duke Energy, and the Overseas Private Investment Corporation (OPIC) combined resources to support new and sustainable approaches to accelerate the development and deployment of clean energy solutions for increasing agriculture productivity. The Toolbox on SPIS has now been embraced for further development by PAEGC's successor program Water and Energy for Food (WE4F). WE4F is a joint international initiative of the European Union (EU), German Federal Ministry for Economic Cooperation and Development (BMZ), the Ministry of Foreign Affairs of the Kingdom of the Netherlands, Sweden through the Swedish International Development Cooperation Agency (Sida), and the U.S. Agency for International Development (USAID). WE4F aims to increase food production along the value chain through a more sustainable and efficient usage of water and/or energy. | E59: La boîte à outils pour les systèmes d’irrigation à énergie solaire (Solar Powered Irrigation Systems, SPIS) est un projet hérité de l'initiative mondiale « Propulser l’agriculture : un grand défi énergétique pour le développement » (Powering Agriculture: An Energy Grand Challenge for Development – PAEGC). En 2012, l’Agence des États-Unis pour le développement international (USAID), l’Agence suédoise de coopération internationale au développement (Sida), le ministère fédéral allemand de la Coopération économique et du Développement (BMZ), Duke Energy et l’Overseas Private Investment Cooperation (OPIC) ont mis leurs ressources en commun pour soutenir des approches nouvelles et durables afin d'accélérer le développement et le déploiement des solutions énergétiques propres pour accroître la productivité agricole. La boîte à outils sur les SPIS a maintenant été adoptée pour un développement ultérieur par le programme successeur du PAEGC, Eau et Energie pour l'Alimentation (PEEPA) - Water and Energy for Food (WE4F). WE4F/PEEPA est une initiative commune de l'Union européenne, du Ministère fédéral allemand de la coopération économique et du développement (BMZ), du Ministère des affaires étrangères du royaume des Pays-Bas, de l’Agence suédoise de développement (Sida) et de l’Agence de développement des États-Unis (USAID). WE4F/PEEPA vise à accroître la production alimentaire tout au long de la chaîne de valeur grâce à une utilisation plus durable et plus efficace de l'eau et/ou de l'énergie. | F59: La publicación de la Caja de herramientas de sistemas de riego solar ha sido posible gracias al apoyo brindado por la iniciativa mundial Powering Agriculture: An Energy Grand Challenge for Development (PAEGC) (Energización Rural: Un gran desafío energético para el desarrollo). En 2012, la Agencia de los Estados Unidos para el Desarrollo Internacional (USAID), la Agencia Sueca de Cooperación Internacional para el Desarrollo (Sida), el Ministerio Federal de Cooperación Económica y Desarrollo (BMZ) de Alemania, la empresa de energía Duke Energy Corporation y la Corporación de Inversiones Privadas en el Extranjero (OPIC) juntaron recursos para crear la iniciativa PAEGC. El objetivo de PAEGC es fomentar nuevos enfoques sostenibles con el fin de acelerar el desarrollo y asegurar el establecimiento de energías limpias que incrementen la productividad y/o el valor de la agricultura en países en desarrollo y regiones emergentes sin acceso a fuentes de energía confiables, asequibles y limpias. | G59: يعتبر صندوق الأدوات الخاص بأنظمة الري التي تعمل بالطاقة الشمسية (SPIS) مشروعًا هاما للمبادرة العالمية "دعم الزراعة: تحدي الطاقة الكبير من أجل التنمية" Powering Agriculture: An Energy Grand Challenge for Development (PAEGC). في عام 2012 ، قامت الوكالة الأمريكية للتنمية الدولية (USAID) ، والوكالة السويدية للتعاون الإنمائي الدولي (ٍSida) ، والوزارة الفيدرالية الألمانية للتعاون الاقتصادي والتنمية (BMZ) ، وشركة Duke Energy ، ومؤسسة الاستثمار الخاص لما وراء البحار (OPIC) بجهود مشتركة لدعم الأساليب الجديدة والمستدامة لتسريع تطوير ونشر حلول الطاقة النظيفة لزيادة الإنتاجية الزراعية. تم اعتماد صندوق SPIS الآن لمزيد من التطوير من قبل البرنامج اللاحق لـ PAEGC "الماء والطاقة من اجل الغذاء" Water and Energy for Food (WE4F). الاخير هو مبادرة دولية مشتركة من الاتحاد الأوروبي (EU) ، والوزارة الاتحادية الألمانية للتعاون الاقتصادي والتنمية (BMZ) ، ووزارة الشؤون الخارجية لمملكة هولندا ، والسويد من خلال الوكالة السويدية للتعاون الإنمائي الدولي (Sida) ، والوكالة الأمريكية للتنمية الدولية (USAID). تهدف WE4F إلى زيادة إنتاج الغذاء على امتداد سلاسل القيمة الغذائية من خلال استخدام المياه و / أو الطاقة بطريقة أكثر استدامة وكفاءة.
C60: The designations employed and the presentation of material in this information product do not imply the expression of any opinion whatsoever on the part of Deutsche Gesellschaft für Internationale Zusammenarbeit (GIZ) GmbH, Food and Agriculture Organization of the United Nations (FAO) or any of the PAEGC Founding Partners concerning the legal or development status of any country, territory, city or area or of its authorities, or concerning the delimitation of its frontiers or boundaries. The mention of specific companies or products of manufacturers, whether or not these have been patented, does not imply that these have been endorsed or recommended by GIZ, FAO, or any of the PAEGC Founding Partners in preference to others of a similar nature that are not mentioned. The views expressed in this information product are those of the author and do not necessarily reflect the views or policies of GIZ, FAO, or any of the PAEGC Founding Partners. | D60: The designations employed and the presentation of material in this information product do not imply the expression of any opinion whatsoever on the part of Deutsche Gesellschaft für Internationale Zusammenarbeit (GIZ) GmbH, Food and Agriculture Organization of the United Nations (FAO) or any of the PAEGC Founding Partners concerning the legal or development status of any country, territory, city or area or of its authorities, or concerning the delimitation of its frontiers or boundaries. The mention of specific companies or products of manufacturers, whether or not these have been patented, does not imply that these have been endorsed or recommended by GIZ, FAO, or any of the PAEGC Founding Partners in preference to others of a similar nature that are not mentioned. The views expressed in this information product are those of the author and do not necessarily reflect the views or policies of GIZ, FAO, or any of the PAEGC Founding Partners. | E60: Les appellations employées dans ce produit d’information et la présentation des documents qui y figurent n’impliquent de la part de la Deutsche Gesellschaft für Internationale Zusammenarbeit (GIZ) GmbH, de l’Organisation des Nations unies pour l’alimentation et l’agriculture (FAO) ou de l’un des partenaires fondateurs de l’initiative PAEGC aucune prise de position quant au statut juridique ou au stade de développement des pays, territoires, villes ou zones ou de leurs autorités, ni quant au tracé de leurs frontières ou limites. La mention de sociétés déterminées ou de produits de fabricants, qu’ils soient ou non brevetés, n’entraîne de la part de la GIZ, de la FAO ou de l’un des partenaires fondateurs du PAEGC aucune approbation ou recommandation desdits produits de préférence à d’autres de nature analogue qui ne sont pas cités. Les opinions exprimées dans ce produit d’information sont celles des auteurs et ne reflètent pas nécessairement celles de la GIZ, de la FAO, ou de l’un des partenaires fondateurs du PAEGC. | F60: Las denominaciones empleadas y la presentación del material en este producto informativo no implican juicio alguno por parte de la Deutsche Gesellschaft für Internationale Zusammenarbeit (GIZ) GmbH, la Organización de las Naciones Unidas para la Alimentación y la Agricultura (FAO), o los socios fundadores de la iniciativa PAEGC, sobre la condición jurídica o el grado de desarrollo de ninguno de los países, territorios, ciudades o zonas citados o de sus autoridades, ni respecto de la delimitación de sus fronteras o límites. La mención de empresas o productos de fabricantes en particular, estén o no patentados, no implica que la GIZ, la FAO o alguno de los socios fundadores de la iniciativa PAEGC los aprueben o recomienden, dándoles preferencia sobre otros de naturaleza similar que no se mencionan. Las opiniones expresadas en este producto informativo son las de su(s) autor(es) o autora(s), y no reflejan necesariamente los puntos de vista o las políticas de la GIZ, la FAO o ninguno de los socios fundadores de la iniciativa PAEGC. | G60: التسميات المستخدمة وطريقة عرض المواد في هذا المنتج المعلوماتي لا تعبر عن أي رأي من جانب Deutsche Gesellschaft für Internationale Zusammenarbeit (GIZ) GmbH أو منظمة الأغذية والزراعة للأمم المتحدة (FAO) أو أي من الشركاء المؤسسين لـ PAEGC فيما يتعلق بالوضع القانوني أو التنموي لأي بلد أو إقليم أو مدينة أو منطقة أو لسلطاتها ، أو فيما يتعلق بترسيم حدودها أو نطاقاتها. إن ذكر شركات أو منتجات معينة من الشركات المصنعة ، سواء تم تسجيل براءات اختراع لها أم لا ، لا يعني أن هذه الشركات أو المنتجات قد تم اعتمادها أو التوصية بها من قبل GIZ أو منظمة الأغذية والزراعة أو أي من الشركاء المؤسسين لـ PAEGC او تفضيلها على الشركات أو المنتجات الاخرى غير مذكورة من نفس الطبيعة. الآراء الواردة في هذا المنتج المعلوماتي هي آراء المؤلف ولا تعكس بالضرورة آراء أو سياسات الوكالة الألمانية للتعاون الدولي أو منظمة الأغذية والزراعة أو أي من الشركاء المؤسسين لـ PAEGC.
C61: GIZ, FAO and the PAEGC Founding Partners encourage the use, reproduction and dissemination of material in this information product. Except where otherwise indicated, material may be copied, downloaded and printed for private study, research and teaching purposes, or for use in non-commercial products or services, provided that appropriate acknowledgement of GIZ and FAO as the source and copyright holder is given. | D61: GIZ, FAO and the PAEGC Founding Partners encourage the use, reproduction and dissemination of material in this information product. Except where otherwise indicated, material may be copied, downloaded and printed for private study, research and teaching purposes, or for use in non-commercial products or services, provided that appropriate acknowledgement of GIZ and FAO as the source and copyright holder is given. | E61: La GIZ, la FAO et les partenaires fondateurs du PAEGC encouragent l’utilisation, la reproduction et la diffusion des informations contenues dans ce document. Sauf indication contraire, ces dernières peuvent être copiées, téléchargées et imprimées à des fins privées d’étude, de recherche et d’enseignement, ou pour être utilisées dans des produits ou services non commerciaux, à condition que la GIZ et la FAO soient clairement indiquées en tant que sources des informations et détentrices du droit d’auteur. | F61: La GIZ, la FAO y los socios fundadores de la iniciativa PAEGC fomentan la utilización, la reproducción y la difusión del material presentado en este producto informativo. A menos que se indique lo contrario, el material puede ser copiado, descargado e impreso con fines de estudio privado, enseñanza e investigación científica, o para su utilización en productos o servicios no comerciales, siempre que se otorgue a la GIZ y la FAO el debido reconocimiento como fuentes y como titulares de los derechos de autor. | G61: تشجع الوكالة الألمانية للتعاون الدولي ومنظمة الأغذية والزراعة والشركاء المؤسسين لـ PAEGC على استخدام واستنساخ ونشر المواد في هذا المنتج المعلوماتي. يمكن نسخ المواد وتنزيلها وطباعتها للدراسة الخاصة ، ولأغراض البحث والتعليم ، أو لاستخدامها في المنتجات أو الخدمات غير التجارية ، ما لم يُذكر خلاف ذلك ، شريطة تقديم إقرار مناسب من الوكالة الألمانية للتعاون الدولي ومنظمة الأغذية والزراعة كمصدر وصاحب حقوق التأليف والنشر.
C62: © GIZ and FAO, 2021 | D62: © GIZ and FAO, 2021 | E62: © GIZ et FAO, 2021 | F62: © GIZ & FAO, 2021 | G62: © GIZ و FAO, 2021
B64: =$C$8 -> 1 General Information | C64: =HLOOKUP($C$6,$D$6:$I$594,ROW()-ROW($B$5),FALSE) -> INVEST – Farm Analysis Tool | D64: INVEST – Farm Analysis Tool | E64: INVESTIR – Outil d’analyse de l’exploitation agricole | F64: INVIERTE – Herramienta de cálculo del balance económico | G64: استثمار - أداة تحليل المزرعة
C65: 1 GENERAL FARM INFORMATION | D65: 1 GENERAL FARM INFORMATION | E65: 1 INFORMATIONS GÉNÉRALES SUR LA FERME | F65: 1 INFORMACIÓN GENERAL SOBRE LA GRANJA | G65: 1 معلومات عامة عن المزرعة
C66: Country | D66: Country | E66: Pays | F66: País | G66: الدولة
C67: Farm code or name | D67: Farm code or name | E67: Code ou nom de l’exploitation | F67: Código o nombre de la granja | G67: رمز أو اسم المزرعة
C68: Region | D68: Region | E68: Région | F68: Región | G68: المنطقة
C69: Date | D69: Date | E69: Date | F69: Fecha | G69: التاريخ
C70: Village | D70: Village | E70: Village | F70: Localidad | G70: القرية
C71: Division | D71: Division | E71: Division | F71: División | G71: القسم
C72: District | D72: District | E72: District | F72: Distrito | G72: الحي
C73: Assessor | D73: Assessor | E73: Enquêteur | F73: Asesor | G73: محقق
C74: Agricultural planning period (years) | D74: Agricultural planning period (years) | E74: Campagne agricole (années) | F74: Período de planificación agrícola (años) | G74: الحملة الزراعية (سنوات)
C75: Currency used for calculation | D75: Currency used for calculation | E75: Monnaie utilisée pour les calculs | F75: Moneda utilizada para el cálculo | G75: العملة المستخدمة في الحسابات
C76: Area measurement unit | D76: Area measurement unit | E76: Unité de mesure de surface | F76: Unidad de medida del área | G76: وحدة قياس المساحة
C77: (year in four digits each!) | D77: (year in four digits each!) | E77: (Année à quatre chiffres chacune!) | F77: (año con cuatro dígitos!) | G77: (سنة مكونة من أربعة أرقام!)
C78: ha | D78: ha | E78: ha | F78: ha | G78: هكتار
C79: Acre | D79: Acre | E79: acre | F79: acre | G79: أكر
C80: Sq. km | D80: Sq. km | E80: km carré | F80: km cuad. | G80: كيلومتر مربع
C81: Sq. m | D81: Sq. m | E81: m carré | F81: m cuad. | G81: متر مربع
C82: Sq. yard | D82: Sq. yard | E82: verge carrée | F82: yarda cuad. | G82: ياردة مربعة
C83: Sq. ft | D83: Sq. ft | E83: pied carré | F83: pie cuad. | G83: قدم مربع
C84: LAND RESOURCES | D84: LAND RESOURCES | E84: RESSOURCES FONCIÈRES | F84: RECURSOS DE TIERRAS | G84: موارد الأراضي
C85: Property rights | D85: Property rights | E85: Droits de propriété | F85: Derechos de propiedad | G85: حقوق الملكية
C86: + Land owned | D86: + Land owned | E86: + Terres en propriété | F86: + tierras en propiedad | G86: + أرض مملوكة
C87: + Additional land as part of cooperative land | D87: + Additional land as part of cooperative land | E87: + Partie des terres coopératives | F87: + tierras adicionales como parte de tierras cooperativa | G87: + أرض إضافية كجزء من أرض التعاونية
C88: + Additional land exploited as a shared grower | D88: + Additional land exploited as a shared grower | E88: + Terres exploitées sous contrat (appartenant à un partenaire) | F88: + tierras adicionales explotadas (colaboración con terceros) | G88: + استغلال أراضٍ إضافية كمزارع مشترك
C89: + Additional land leased in | D89: + Additional land leased in | E89: + Terres prises en location | F89: + tierras adicionales arrendadas | G89: + أرض إضافية مؤجرة
C90: - Own land leased out | D90: - Own land leased out | E90: - Terres données en location | F90: - tierras en propiedad arrendadas a terceros | G90: - أرض التملك المؤجرة
C91: + Additional land in possession of other sources | D91: + Additional land in possession of other sources | E91: + Terres en possession d’autres sources | F91: + tierras adicionales en posesión de otras fuentes | G91: + أرض إضافية بحوزة مصادر أخرى
C92: - Own land unused or unusable | D92: - Own land unused or unusable | E92: - Terres en propriété inutilisées ou inutilisables | F92: - tierras en propiedad no utilizadas o no utilizables | G92: - تملك أرض غير مستخدمة أو غير صالحة للاستعمال
C93: Area | D93: Area | E93: Superficie | F93: Área | G93: المساحة
C94: Total | D94: Total | E94: Total | F94: Total | G94: المجموع
C95: Land classification | D95: Land classification | E95: Classification des terres | F95: Clasificación de las tierras | G95: تصنيف الأراضي
C96: Seasonal crop land | D96: Seasonal crop land | E96: Terres à cultures saisonnières | F96: Tierras de cultivos estacionales | G96: الأراضي الزراعية الموسمية
C97: Perennials (with & without option of intercropping) | D97: Perennials (with & without option of intercropping) | E97: Pluriannuelles (avec et sans cultures intercalaires) | F97: Cultivos perennes (con y sin opción de cultivos intercalados) | G97: النباتات المعمرة (مع أو بدون خيار الزراعة البينية)
C98: Greenhouses | D98: Greenhouses | E98: Serres | F98: Invernaderos | G98: البيوت البلاستيكية
C99: Pastures (grazing land) | D99: Pastures (grazing land) | E99: Pâturages | F99: Pastizales (tierras de pasto) | G99: المراعي (أراضي الرعي)
C100: Fallow land | D100: Fallow land | E100: Jachères | F100: Tierra en barbecho | G100: الأرض البور
C101: rainfed | D101: rainfed | E101: pluviales | F101: de secano | G101: بعلية
C102: irrigated | D102: irrigated | E102: irriguées | F102: de regadío | G102: مروية
C103: Total agricultural / horticultural land | D103: Total agricultural / horticultural land | E103: Total des terres agricoles/horticoles | F103: Total de tierras para agricultura/horticultura | G103: مجموع الأراضي الزراعية / البستانية
C104: Total area | D104: Total area | E104: Superficie totale | F104: Área total | G104: المساحة الكلية
C105: CHECK Property rights | D105: CHECK Property rights | E105: VÉRIFIER Droits de propriété | F105: VERIFICAR Derechos de propiedad | G105: تحقق من حقوق الملكية
B107: =$C$9 -> 2 Equipment & Assets | C107: =HLOOKUP($C$6,$D$6:$I$594,ROW()-ROW($B$5),FALSE) -> INVEST – Farm Analysis Tool | D107: INVEST – Farm Analysis Tool | E107: INVESTIR – Outil d’analyse de l’exploitation agricole | F107: INVIERTE – Herramienta de cálculo del balance económico | G107: استثمار - أداة تحليل المزرعة | I107: استثمار - أداة تحليل المزرعة
C108: 2 EQUIPMENT & ASSETS | D108: 2 EQUIPMENT & ASSETS | E108: 2 ÉQUIPEMENTS ET RESSOURCES | F108: 2 EQUIPAMIENTO Y ACTIVOS | G108: 2 المعدات والأصول
C109: Farm code/name | D109: Farm code/name | E109: Code/nom de l’exploitation | F109: Código/nombre de la granja | G109: رمز / اسم المزرعة
C110: Type | D110: Type | E110: Type | F110: Tipo | G110: النوع
C111: Cost of existing equipment (when originally purchased) | D111: Cost of existing equipment (when originally purchased) | E111: Coût de l'équipement existant (au moment de l'achat initial) | F111: Costo del equipo existente (cuando se compró originalmente) | G111: تكلفة المعدات الموجودة (عند شرائها جديدة)
C112: Salvage value (when selling existing equipment) | D112: Salvage value (when selling existing equipment) | E112: Valeur de récupération (lors de la vente d'équipement existant) | F112: Valor residual (al vender equipo existente) | G112: القيمة المتبقية (عند بيع المعدات الموجودة)
C113: Age | D113: Age | E113: Âge | F113: Edad | G113: عمر المعدة
C114: Normal life span | D114: Normal life span | E114: Durée de vie normale | F114: Vida útil | G114: العمر الإفتراضي
C115: Annual depreciation for replacement | D115: Annual depreciation for replacement | E115: Dépréciation annuelle en vue du remplacement | F115: Depreciación anual para sustitución | G115: الاهلاك السنوي
C116: years | D116: years | E116: années | F116: años | G116: سنوات
C117: Indicative normal life span: | D117: Indicative normal life span: | E117: Durée de vie normale indicative : | F117: Vida útil normal indicativa: | G117: العمر الافتراضي الإرشادي:
C118: (highly quality dependent!) | D118: (highly quality dependent!) | E118: (très dépendante de la qualité!) | F118: (según la calidad) | G118: (يعتمد على الجودة بدرجة عالية!)
C119: Livestock shed - 20 years | D119: Livestock shed - 20 years | E119: Hangar pour animaux - 20 years | F119: Cobertizo ganado - 20 años | G119: حظيرة المواشي - 20 سنة
C120: Garage / workshop - 20 year | D120: Garage / workshop - 20 year | E120: Garage/atelier – 20 ans | F120: Garaje/taller - 20 años | G120: المرآب / ورشة العمل - 20 سنة
C121: Storage / warehouse - 20 years | D121: Storage / warehouse - 20 years | E121: Stockage/entrepôt – 20 ans | F121: Almacén/depósito - 20 años | G121: التخزين / المستودع - 20 سنة
C122: Greenhouse - 10 years | D122: Greenhouse - 10 years | E122: Serre - 10 years | F122: Equipamiento invernadero - 10 años | G122: بيت بلاستيكي - 10 سنوات
C123: Other building - 20 years | D123: Other building - 20 years | E123: Autre bâtiment – 20 ans | F123: Otra edificación - 20 años | G123: مبنى آخر - 20 سنة
C124: Ox cart - 7 years | D124: Ox cart - 7 years | E124: Char à bœufs – 7 ans | F124: Carro de bueyes - 7 años | G124: عربة الثور - 7 سنوات
C125: Truck / car - 10 years | D125: Truck / car - 10 years | E125: Camion/voiture – 10 ans | F125: Camión/automóvil - 10 años | G125: شاحنة / سيارة - 10 سنوات
C126: Tractor - 10 years | D126: Tractor - 10 years | E126: Tracteur – 10 ans | F126: Tractor - 10 años | G126: جرار - 10 سنوات
C127: Plough - 7 years | D127: Plough - 7 years | E127: Charrue – 7 ans | F127: Arado - 7 años | G127: محراث - 7 سنوات
C128: Cultivator / tiller - 7 years | D128: Cultivator / tiller - 7 years | E128: Cultivateur/charrue – 7 ans | F128: Cultivador/rotocultivador - 7 años | G128: حراثة - 7 سنوات
C129: Sowing machine - 7 years | D129: Sowing machine - 7 years | E129: Semoir – 7 ans | F129: Sembradora - 7 años | G129: آلة البذر - 7 سنوات
C130: Fertilizer distributor - 7 years | D130: Fertilizer distributor - 7 years | E130: Épandeur à engrais – 7 ans | F130: Distribuidor de fertilizantes - 7 años | G130: موزع سماد - 7 سنوات
C131: Sprayer - 7 years | D131: Sprayer - 7 years | E131: Pulvérisateur – 7 ans | F131: Pulverizador - 7 años | G131: بخاخ - 7 سنوات
C132: Grass cutter - 7 years | D132: Grass cutter - 7 years | E132: Faucheuse – 7 ans | F132: Segadora - 7 años | G132: قاطعة العشب - 7 سنوات
C133: Baler - 7 years | D133: Baler - 7 years | E133: Presse – 7 ans | F133: Embaladora - 7 años | G133: محزمة - 7 سنوات
C134: Cereal harvester - 10 years | D134: Cereal harvester - 10 years | E134: Moissonneuse-batteuse – 10 ans | F134: Cosechadora de cereales - 10 años | G134: حصادة الحبوب - 10 سنوات
C135: Irrigation material - 5 years | D135: Irrigation material - 5 years | E135: Matériel d’irrigation – 5 ans | F135: Material de riego - 5 años | G135: معدات الري - 5 سنوات
C136: Water pump - 7 years | D136: Water pump - 7 years | E136: Pompe à eau – 7 ans | F136: Bomba de agua - 7 años | G136: مضخة مياه - ٧ سنوات
C137: PV modules - 20 years | D137: PV modules - 20 years | E137: Modules photovoltaïques - 20 ans | F137: Generador fotovoltaico - 20 años | G137: ألواح شمسية - 20 سنة
C138: Well / borehole - 20 years | D138: Well / borehole - 20 years | E138: puits/forage - 20 ans | F138: Pozo/perforación - 20 años | G138: بئر - 20 سنة
C139: =HLOOKUP($C$6,$D$6:$I$594,ROW()-ROW($B$5),FALSE) -> Please select | D139: Please select | E139: Veuillez sélectionner | F139: Seleccione | G139: الرجاء الاختيار
C140: Livestock shed | D140: Livestock shed | E140: Hangar pour animaux | F140: Cobertizo ganado | G140: حظيرة المواشي
C141: Garage / workshop | D141: Garage / workshop | E141: garage/atelier | F141: Garaje/taller | G141: المرآب / ورشة العمل
C142: Storage / warehouse | D142: Storage / warehouse | E142: Stockage/entrepôt | F142: Almacén/depósito | G142: التخزين / المستودع
C143: Greenhouse | D143: Greenhouse | E143: Serre | F143: Equipamiento invernadero | G143: بيت بلاستيكي
C144: Other building | D144: Other building | E144: Autre bâtiment | F144: Otra edificación | G144: مبنى آخر
C145: Ox cart | D145: Ox cart | E145: Char à bœufs | F145: Carro de bueyes | G145: عربة الثور
C146: Truck / car | D146: Truck / car | E146: Camion/voiture | F146: Camión/automóvil | G146: شاحنة / سيارة
C147: Tractor | D147: Tractor | E147: Tracteur | F147: Tractor | G147: جرار
C148: Plough | D148: Plough | E148: Charrue | F148: Arado | G148: محراث
C149: Cultivator / tiller | D149: Cultivator / tiller | E149: Cultivateur/charrue | F149: Cultivador/rotocultivador | G149: حراثة
C150: Sowing machine | D150: Sowing machine | E150: Semoir | F150: Sembradora | G150: آلة البذر
C151: Fertilizer distributor | D151: Fertilizer distributor | E151: Épandeur à engrais | F151: Distribuidor de fertilizantes | G151: موزع سماد
C152: Sprayer | D152: Sprayer | E152: Pulvérisateur | F152: Pulverizador | G152: بخاخ
C153: Grass cutter | D153: Grass cutter | E153: Faucheuse | F153: Segadora | G153: قاطعة العشب
C154: Baler | D154: Baler | E154: Presse | F154: Embaladora | G154: محزمة العشب
C155: Cereal harvester | D155: Cereal harvester | E155: Moissonneuse-batteuse | F155: Cosechadora de cereales | G155: حصادة الحبوب
C156: Irrigation material | D156: Irrigation material | E156: Matériel d’irrigation | F156: Material de riego | G156: معدات الري
C157: Water pump | D157: Water pump | E157: Pompe à eau | F157: Bomba de agua | G157: مضخة مياه
C158: PV generator | D158: PV generator | E158: Modules photovoltaïques | F158: Generador fotovoltaico | G158: ألواح شمسية
C159: Well / borehole | D159: Well / borehole | E159: puits/forage | F159: Pozo/perforación | G159: بئر
C160: Total Annual Depreciation | D160: Total Annual Depreciation | E160: Dépréciation annuelle totale | F160: Depreciación total anual | G160: إجمالي الإهلاك السنوي
B162: =$C$10 -> 3 Income Crops & Livestock | C162: =HLOOKUP($C$6,$D$6:$I$594,ROW()-ROW($B$5),FALSE) -> INVEST – Farm Analysis Tool | D162: INVEST – Farm Analysis Tool | E162: INVESTIR – Outil d’analyse de l’exploitation agricole | F162: INVIERTE – Herramienta de cálculo del balance económico | G162: استثمار - أداة تحليل المزرعة
C163: INCOME: SEASONAL CROP | D163: INCOME: SEASONAL CROP | E163: REVENU : CULTURE SAISONNIÈRE | F163: INGRESOS: CULTIVOS ESTACIONALES | G163: الدخل: المحاصيل الموسمية
C164: Farm code/name | D164: Farm code/name | E164: Code/nom de l’exploitation | F164: Código/nombre de la granja | G164: رمز / اسم المزرعة
C165: Agricultural land used: | D165: Agricultural land used: | E165: Terres agricoles utilisées : | F165: Terreno agrícola en uso: | G165: الأراضي الزراعية المستخدمة:
C166: Season 1 | D166: Season 1 | E166: Saison 1 | F166: Temporada 1 | G166: الموسم 1
C167: Season 2 | D167: Season 2 | E167: Saison 2 | F167: Temporada 2 | G167: الموسم 2
C168: Unit | D168: Unit | E168: Unité | F168: Unidad | G168: الوحدة
C169: Yield per | D169: Yield per | E169: Rendement par | F169: Rendimiento por | G169: العائد لكل
C170: or Quantity | D170: or Quantity | E170: ou Quantité | F170: o cantidad | G170: أو الكمية
C171: Unit Price | D171: Unit Price | E171: Prix unitaire | F171: Precio unidad | G171: سعر الوحدة
C172: Value | D172: Value | E172: Valeur | F172: Valor | G172: القيمة
C173: Sales | D173: Sales | E173: Ventes | F173: Ventas | G173: المبيعات
C174: Crop types: | D174: Crop types: | E174: Types de cultures: | F174: Tipos de cultivo | G174: أنواع المحاصيل:
C175: Season: | D175: Season: | E175: Saison: | F175: Temporada: | G175: الموسم:
C176: Area: | D176: Area: | E176: Surface: | F176: Área: | G176: المساحة:
C177: By-products: | D177: By-products: | E177: Produits dérivés: | F177: Subproductos: | G177: المنتجات الثانوية:
C178: GROSS INCOME | D178: GROSS INCOME | E178: REVENU BRUT | F178: PRODUCTO BRUTO | G178: الدخل الإجمالي
C179: INCOME: PERENNIAL CROP | D179: INCOME: PERENNIAL CROP | E179: REVENU : CULTURE PÉNÉNINIALE | F179: INGRESOS: CULTIVOS PERENNES | G179: الدخل: المحاصيل الدائمة
C180: INCOME: LIVESTOCK | D180: INCOME: LIVESTOCK | E180: REVENU : ÉLEVAGE | F180: INGRESOS: GANADERÍA | G180: الدخل: الثروة الحيوانية
C181: Livestock for production: | D181: Livestock for production: | E181: Bétail pour la production : | F181: Ganado en la producción: | G181: الثروة الحيوانية للإنتاج:
C182: Livestock sold: | D182: Livestock sold: | E182: Bétail vendu : | F182: Ganado vendido | G182: الماشية المباعة:
C183: head | D183: head | E183: tête | F183: cabeza | G183: رأس
C184: Quantity | D184: Quantity | E184: Quantité | F184: Cantidad | G184: الكمية
C185: For Production | D185: For Production | E185: Pour la production | F185: Para la producción | G185: للإنتاج
C186: For Sale | D186: For Sale | E186: A Vendre | F186: Para la venta | G186: للبيع
C187: Livestock type | D187: Livestock type | E187: Type de bétail | F187: Tipo de ganado | G187: نوع الثروة الحيوانية
C188: Dairy cows | D188: Dairy cows | E188: Vaches laitières | F188: Vacas lecheras | G188: الأبقار الحلوب
C189: Heifers | D189: Heifers | E189: Génisses | F189: Terneros | G189: عجلة
C190: Adult steers | D190: Adult steers | E190: Bœufs adultes | F190: Bueyes adultos | G190: ثور مخصي
C191: Juvenile steers | D191: Juvenile steers | E191: Bœufs juvéniles | F191: Bueyes jóvenes | G191: عجل مخصي
C192: Calfs | D192: Calfs | E192: Veaux | F192: Becerros | G192: عجول
C193: Sheep does | D193: Sheep does | E193: Moutons - brebis | F193: Ovejas hembra | G193: الخراف - نعجة
C194: =HLOOKUP($C$6,$D$6:$I$594,ROW()-ROW($B$5),FALSE) -> Sheep bucks | D194: Sheep bucks | E194: Moutons - bélier | F194: Ovejas macho | G194: الخراف - كبش
C195: Sheep kids | D195: Sheep kids | E195: Moutons - agneau | F195: Corderos | G195: الخراف - حمل
C196: Goat does | D196: Goat does | E196: Chèvres - chèvre | F196: Cabras hembra | G196: الماعز - عنزة
C197: Goat bucks | D197: Goat bucks | E197: Chèvres - boucs | F197: Cabras macho | G197: الماعز - تيس
C198: Goat kids | D198: Goat kids | E198: Chèvres - chevreau | F198: Cabritos | G198: الماعز - جدي
C199: Chickens | D199: Chickens | E199: Poulets | F199: Pollos | G199: دجاج
C200: Milk | D200: Milk | E200: Lait | F200: Leche | G200: حليب
C201: Eggs | D201: Eggs | E201: Œufs | F201: Huevos | G201: بيض
C202: Skins | D202: Skins | E202: Peaux | F202: Piel | G202: جلود
C203: Manure | D203: Manure | E203: Fumier | F203: Estiércol | G203: سماد
C204: litres | D204: litres | E204: litres | F204: litros | G204: لترات
C205: piece | D205: piece | E205: pièce | F205: trozo | G205: قطعة
C206: By-product calculator for | D206: By-product calculator for | E206: Calculateur de produits dérivés | F206: Calculadora para subproductos | G206: الحاسبة للمنتج الثانوي لـ
C207: Select | D207: Select | E207: Sélectionner | F207: Seleccione | G207: اختر
C208: Daily milk yield: | D208: Daily milk yield: | E208: Rendement laitier journalier : | F208: Producción diaria de leche: | G208: إنتاج الحليب اليومي:
... 380 more rows

Sheet Graph table (hidden)
A7: ='6 Fixed and Variable Costs'!B8 -> FIXED COSTS | B7: ='6 Fixed and Variable Costs'!B9 -> Financing fees | C7: ='6 Fixed and Variable Costs'!Q9 -> 2632.254699
B8: ='6 Fixed and Variable Costs'!B10 -> Depreciation costs | C8: ='6 Fixed and Variable Costs'!Q10 -> 2777.777778
B9: ='6 Fixed and Variable Costs'!B11 -> Membership fees | C9: ='6 Fixed and Variable Costs'!Q11 -> 0
B10: ='6 Fixed and Variable Costs'!B12 -> Insurance costs | C10: ='6 Fixed and Variable Costs'!Q12 -> 0
B11: ='6 Fixed and Variable Costs'!B13 -> Land tax | C11: ='6 Fixed and Variable Costs'!Q13 -> 0
B12: ='6 Fixed and Variable Costs'!B14 -> Social fund contribution | C12: ='6 Fixed and Variable Costs'!Q14 -> 0
B13: ='6 Fixed and Variable Costs'!B15 -> Leasing fees for equipment | C13: ='6 Fixed and Variable Costs'!Q15 -> 0
B14: ='6 Fixed and Variable Costs'!B16 -> Rental costs for land | C14: ='6 Fixed and Variable Costs'!Q16 -> 0
B15: ='6 Fixed and Variable Costs'!B17 -> - | C15: ='6 Fixed and Variable Costs'!Q17 -> 0
B16: ='6 Fixed and Variable Costs'!B18 -> - | C16: ='6 Fixed and Variable Costs'!Q18 -> 0
A17: ='6 Fixed and Variable Costs'!B21 -> VARIABLE COSTS | B17: ='6 Fixed and Variable Costs'!B22 -> Fuel and gas costs | C17: ='6 Fixed and Variable Costs'!Q22 -> 0
B18: ='6 Fixed and Variable Costs'!B23 -> Water fees | C18: ='6 Fixed and Variable Costs'!Q23 -> 0
B19: ='6 Fixed and Variable Costs'!B24 -> Electricity fees | C19: ='6 Fixed and Variable Costs'!Q24 -> 0
B20: ='6 Fixed and Variable Costs'!B25 -> Transport fees | C20: ='6 Fixed and Variable Costs'!Q25 -> 0
B21: ='6 Fixed and Variable Costs'!B26 -> Salary costs (permanent staff) | C21: ='6 Fixed and Variable Costs'!Q26 -> 0
B22: ='6 Fixed and Variable Costs'!B27 -> Salary costs (temporary staff) | C22: ='6 Fixed and Variable Costs'!Q27 -> 0
B23: ='6 Fixed and Variable Costs'!B28 -> Seeds | C23: ='6 Fixed and Variable Costs'!Q28 -> 0
B24: ='6 Fixed and Variable Costs'!B29 -> Manure and fertilizer | C24: ='6 Fixed and Variable Costs'!Q29 -> 0
B25: ='6 Fixed and Variable Costs'!B30 -> Plant protection | C25: ='6 Fixed and Variable Costs'!Q30 -> 0
B26: ='6 Fixed and Variable Costs'!B31 -> Fodder | C26: ='6 Fixed and Variable Costs'!Q31 -> 0
B27: ='6 Fixed and Variable Costs'!B32 -> Veterinary Services | C27: ='6 Fixed and Variable Costs'!Q32 -> 0
B28: ='6 Fixed and Variable Costs'!B33 -> Traction and mechanisation hire | C28: ='6 Fixed and Variable Costs'!Q33 -> 0
B29: ='6 Fixed and Variable Costs'!B34 -> Machinery repairs and maintenance | C29: ='6 Fixed and Variable Costs'!Q34 -> 0
B30: ='6 Fixed and Variable Costs'!B35 -> Infrastructure repairs and maintenance | C30: ='6 Fixed and Variable Costs'!Q35 -> 0
B31: ='6 Fixed and Variable Costs'!B36 -> Irrigation repair and maintenance | C31: ='6 Fixed and Variable Costs'!Q36 -> 0
B32: ='6 Fixed and Variable Costs'!B37 -> - | C32: ='6 Fixed and Variable Costs'!Q37 -> 0
B33: ='6 Fixed and Variable Costs'!B38 -> - | C33: ='6 Fixed and Variable Costs'!Q38 -> 0

Sheet List of dropdown (hidden)
A2: Area | B2: CF to ha
A3: =Translate!C78 -> ha | B3: 1
A4: =Translate!C79 -> Acre | B4: 2.47105
A5: =Translate!C80 -> Sq. km | B5: 0.01
A6: =Translate!C81 -> Sq. m | B6: 10000
A7: =Translate!C82 -> Sq. yard | B7: 11959.9
A8: =Translate!C83 -> Sq. ft | B8: 107639
A11: Season
A13: =Translate!$C$166 -> Season 1
A14: =Translate!$C$167 -> Season 2
A16: Total irrigated Area | B16: =SUM('1 General Information'!$E$31:$F$31) -> 1
C17: Crop | D17: Season | E17: Area
C18: Crop 1 | D18: ='3 Income Crops & Livestock'!$C10 -> 0 | E18: ='3 Income Crops & Livestock'!$D10 -> 0.5
C19: Crop 2 | D19: ='3 Income Crops & Livestock'!$C11 -> 0 | E19: ='3 Income Crops & Livestock'!$D11 -> 0.5
C20: Crop 3 | D20: ='3 Income Crops & Livestock'!$C12 -> 0 | E20: ='3 Income Crops & Livestock'!$D12 -> 0.5
C21: Crop 4 | D21: ='3 Income Crops & Livestock'!$C13 -> 0 | E21: ='3 Income Crops & Livestock'!$D13 -> 0.5
C22: Crop 5 | D22: ='3 Income Crops & Livestock'!$C14 -> 0 | E22: ='3 Income Crops & Livestock'!$D14 -> 0
C23: Crop 6 | D23: ='3 Income Crops & Livestock'!$C15 -> 0 | E23: ='3 Income Crops & Livestock'!$D15 -> 0
B24: =$E$24<=$B$16 -> TRUE | C24: =Translate!$C$166 -> Season 1 | D24: Total area | E24: =SUMIF($D$18:D23, $C$24,$E$18:$E$23) -> 0
B25: =$E$25<=$B$16 -> TRUE | C25: =Translate!$C$167 -> Season 2 | D25: Total area | E25: =SUMIF($D$18:D23, $C$25,$E$18:$E$23) -> 0
A28: Costs
A29: =Translate!$C$246 -> Monthly
A30: =Translate!$C$247 -> Yearly
